Workbook

Sheet Hipoteca Free
J3: =+IF(requisitos!I14=9,"SOLICITUD DE AVALUO Y ESTUDIO DE COSTOS",IF(requisitos!I14=10,"SOLICITUD DE AVALUO Y ESTUDIO DE COSTOS","SOLICITUD AVALUO")) -> SOLICITUD AVALUO
Q4: HIPOTECARIO
Q5: FECHA DE EXPEDICIÓN
A6: BANCO SANTANDER MEXICO,SOCIEDAD ANONIMA, INSTITUCION DE BANCA MULTIPLE. | Q6: =NOW() -> 2025-07-08T14:38:15.680
A7: Grupo Financiero Santander.
C10: EMPLEADO | H10: CLIENTE EXTERNO | L10: FAVOR DE MARCAR CON EL CURSOR LA OPCION CORRESPONDIENTE.
O13: =+IF(requisitos!I14=3,requisitos!R14,'CALCULO Empleados'!M21) -> FALSE | Q13: =+IF(O13<18000,O13,18000) -> 18000
Q14: =IF(requisitos!I14=3,requisitos!R14,IF(requisitos!I14=4,requisitos!R15,IF(requisitos!I14=5,requisitos!R16,IF(requisitos!I14=9,requisitos!R20,IF(requisitos!I14=10,requisitos!R21,IF(requisitos!I14=11,requisitos!O22,requisitos!R12)))))) -> 1913
A15: =IF(requisitos!$T$3=2,"FUNCIONARIO QUE ATIENDE AL CLIENTE","DATOS DEL EMPLEADO") -> FUNCIONARIO QUE ATIENDE AL CLIENTE | N15: =+IF(Q15<1412.88,"$1,413.00",Q15) -> 1913 | Q15: =+IF(requisitos!T3=1,'Hipoteca Free'!Q13,'Hipoteca Free'!Q14) -> 1913
A17: NOMBRE | H17: PUESTO | P17: TEL.
A20: =+IF(requisitos!I14=3,"VALOR ESTIMADO DEL INMUEBLE",IF(requisitos!I14=4,"VALOR ESTIMADO DEL INMUEBLE",IF(requisitos!I14=6,"VALOR ESTIMADO DEL INMUEBLE",IF(requisitos!I14=7,"VALOR ESTIMADO DEL INMUEBLE",IF(requisitos!I14=9,"V A L O R P R O Y E C T O",IF(requisitos!I14=10,"V A L O R P R O Y E C T O","P R E C I O D E C O M P R A V E N T A")))))) -> P R E C I O D E C O M P R A V E N T A | K20: =+IF(H20="","FALTA CAPTURAR COMPRAVENTA/VALOR ESTIMADO","") -> FALTA CAPTURAR COMPRAVENTA/VALOR ESTIMADO | O20: =+IF(requisitos!I14=3,"HONORARIOS",IF(requisitos!I14=4,"HONORARIOS","MONTO DEL ANTICIPO")) -> MONTO DEL ANTICIPO | Q20: =IF(H20=0,"",N15) -> 
A21: =+IF(requisitos!I14=9,"PONER SUMA DEL VALOR TERRENO Y TOTAL DEL PRESUPUESTO",IF(requisitos!I14=10,"PONER SUMA DEL VALOR TERRENO Y TOTAL DEL PRESUPUESTO","")) ->  | N21: ABONAR A CUENTA 92-00061101-1
A22: =+IF(requisitos!I14=3,"PARA CREDITOS DE SUSTITUCIÓN ES NECESARIO DEPOSITAR EL HONORARIO Y LOS VIATICOS TOTALES ANTES DE SOLICITAR EL AVALÚO.",IF(requisitos!I14=4,"PARA MEJORAS DE CONDICIONES ES NECESARIO DEPOSITAR LOS VIATICOS TOTALES JUNTO CON EL ANTICIPO ANTES DE SOLICITAR EL AVALÚO."," ")) ->  | N22: Deposito Referenciado
L23: Referencias: | N23: Folio CH. | O23: Nombre del Solicitante de crédito
O24: =+G52 -> 0
A26: TIPO DE CRÉDITO
L27: =+IF(requisitos!I14=9,"PARA CREDITO DE CONSTRUCCION DEBE SEÑALAR LA OPCION TERRENO",IF(requisitos!I14=10,"PARA CREDITO DE CONSTRUCCIÓN Y ADQ. TERRENO DEBE SEÑALAR EN TIPO DE BIEN A VALUAR LA OPCION TERRENO.","")) -> 
A31: UBICACIÓN DEL INMUEBLE A VALUAR | M31: DOCUMENTACIÓN QUE SE DEBEN ANEXAR (2 COPIAS)
A32: TIPO DE BIEN A VALUAR | G32: =IF(ISERROR(INDEX(requisitos!AF2:AF7,requisitos!AE2)),"",(INDEX(requisitos!AF2:AF7,requisitos!AE2))) -> CASA SOLA | M32: -BOLETA PREDIAL Y AGUA
A33: CALLE | M33: -ESCRITURA ó TITULO DE PROPIEDAD
A34: NÚMERO EXT. | I34: INTERIOR. | M34: -PLANOS ARQUITECTÓNICOS | P34: =+IF(requisitos!I14=9,requisitos!H27,IF(requisitos!I14=10,requisitos!H27,"")) -> 
A35: COLONIA | M35: -COMPROBANTE PAGO ANTICIPO
A36: ENTIDAD FEDERATIVA (ESTADO)
A37: DELEG. O MUNICIPIO | M37: =+IF(requisitos!I14=9,requisitos!H28,IF(requisitos!I14=10,requisitos!H28,"")) -> 
A38: CIUDAD | M38: =IF(requisitos!AE2=2,requisitos!G27,IF(requisitos!AE2=3,requisitos!G27,"")) -> 
A39: CÓDIGO POSTAL | M39: =IF(requisitos!AE2=2,requisitos!G28,IF(requisitos!AE2=3,requisitos!G28,"")) -> 
A40: ENTRE CALLE | M40: =+IF(requisitos!AE2=2,"VIVIENDA NUEVA EN CONDOMINIO SE RECOMIENDA ANEXAR CONTRATO DE COMPRAVENTA.",IF(requisitos!AE2=3,"VIVIENDA NUEVA EN CONDOMINIO SE RECOMIENDA ANEXAR CONTRATO DE COMPRAVENTA.","")) -> 
A41: Y CALLE
A45: PERSONA QUE MOSTRARA EL INMUEBLE A VALUAR
A46: NOMBRE | M46: TELÉFONO 1 | O46: TELÉFONO 2
A51: DATOS DEL SOLICITANTE DEL CRÉDITO | J51: DATOS DEL PROPIETARIO Y DEL INMUEBLE A VALUAR
A52: NOMBRE | J52: NOMBRE
A53: =IF(OR(requisitos!$I$14=8,requisitos!$I$14=2),"NUMERO DE SEGURIDAD SOCIAL (NSS)","") ->  | J53: =IF(OR(requisitos!$I$14=8,requisitos!$I$14=2),"NUMERO DE SEGURIDAD SOCIAL (NSS)","") -> 
A54: =IF(OR(requisitos!$I$14=8,requisitos!$I$14=2),"R.F.C","") ->  | J54: =IF(OR(requisitos!$I$14=8,requisitos!$I$14=2),"R.F.C","") -> 
A55: =IF(OR(requisitos!$I$14=8,requisitos!$I$14=2),"CURP","") ->  | J55: =IF(OR(requisitos!$I$14=8,requisitos!$I$14=2),"CURP","") ->  | U55: =+IF(requisitos!AE2=1,1,"") -> 1 | V55: =+IF(requisitos!AF2=1,1,"") ->  | W55: =+IF(requisitos!AG2=1,1,"") ->  | X55: =+IF(requisitos!AH2=1,1,"") ->  | Y55: =+IF(requisitos!AI2=1,1,"") ->  | Z55: =+IF(requisitos!AJ2=1,1,"") ->  | AA55: =+IF(requisitos!AK2=1,1,"") ->  | AB55: =+IF(requisitos!AL2=1,1,"") ->  | AC55: =+IF(requisitos!AM2=1,1,"") ->  | AD55: =+IF(requisitos!AN2=1,1,"") ->  | AE55: =+IF(requisitos!AO2=1,1,"") ->  | AF55: =+IF(requisitos!AP2=1,1,"") ->  | AG55: =+IF(requisitos!AQ2=1,1,"") ->  | AH55: =+IF(requisitos!AR2=1,1,"") ->  | AI55: =+IF(requisitos!AS2=1,1,"") ->  | AJ55: =+IF(requisitos!AT2=1,1,"") ->  | AK55: =+IF(requisitos!AU2=1,1,"") ->  | AL55: =+IF(requisitos!AV2=1,1,"") ->  | AM55: =+IF(requisitos!AW2=1,1,"") ->  | AN55: =+IF(requisitos!AX2=1,1,"") ->  | AO55: =+IF(requisitos!AY2=1,1,"") ->  | AP55: =+IF(requisitos!AZ2=1,1,"") ->  | AQ55: =+IF(requisitos!BA2=1,1,"") ->  | AR55: =+IF(requisitos!BB2=1,1,"") ->  | AS55: =+IF(requisitos!BC2=1,1,"") ->  | AT55: =+IF(requisitos!BD2=1,1,"") ->  | AU55: =+IF(requisitos!BE2=1,1,"") ->  | AV55: =+IF(requisitos!BF2=1,1,"") ->  | AW55: =+IF(requisitos!BG2=1,1,"") ->  | AX55: =+IF(requisitos!BH2=1,1,"") ->  | AY55: =+IF(requisitos!BI2=1,1,"") ->  | AZ55: =+IF(requisitos!BJ2=1,1,"") ->  | BA55: =+IF(requisitos!BK2=1,1,"") ->  | BB55: =+IF(requisitos!BL2=1,1,"") ->  | BC55: =+IF(requisitos!BM2=1,1,"") ->  | BD55: =+IF(requisitos!BN2=1,1,"") ->  | BE55: =+IF(requisitos!BO2=1,1,"") ->  | BF55: =+IF(requisitos!BP2=1,1,"") ->  | BG55: =+IF(requisitos!BQ2=1,1,"") ->  | BH55: =+IF(requisitos!BR2=1,1,"") ->  | BI55: =+IF(requisitos!BS2=1,1,"") ->  | BJ55: =+IF(requisitos!BT2=1,1,"") ->  | BK55: =+IF(requisitos!BU2=1,1,"") ->  | BL55: =+IF(requisitos!BV2=1,1,"") ->  | BM55: =+IF(requisitos!BW2=1,1,"") ->  | BN55: =+IF(requisitos!BX2=1,1,"") ->  | BO55: =+IF(requisitos!BY2=1,1,"") ->  | BP55: =+IF(requisitos!BZ2=1,1,"") ->  | BQ55: =+IF(requisitos!CA2=1,1,"") ->  | BR55: =+IF(requisitos!CB2=1,1,"") ->  | BS55: =+IF(requisitos!CC2=1,1,"") ->  | BT55: =+IF(requisitos!CD2=1,1,"") ->  | BU55: =+IF(requisitos!CE2=1,1,"") ->  | BV55: =+IF(requisitos!CF2=1,1,"") ->  | BW55: =+IF(requisitos!CG2=1,1,"") ->  | BX55: =+IF(requisitos!CH2=1,1,"") ->  | BY55: =+IF(requisitos!CI2=1,1,"") ->  | BZ55: =+IF(requisitos!CJ2=1,1,"") ->  | CA55: =+IF(requisitos!CK2=1,1,"") ->  | CB55: =+IF(requisitos!CL2=1,1,"") ->  | CC55: =+IF(requisitos!CM2=1,1,"") ->  | CD55: =+IF(requisitos!CN2=1,1,"") ->  | CE55: =+IF(requisitos!CO2=1,1,"") ->  | CF55: =+IF(requisitos!CP2=1,1,"") ->  | CG55: =+IF(requisitos!CQ2=1,1,"") ->  | CH55: =+IF(requisitos!CR2=1,1,"") ->  | CI55: =+IF(requisitos!CS2=1,1,"") ->  | CJ55: =+IF(requisitos!CT2=1,1,"") ->  | CK55: =+IF(requisitos!CU2=1,1,"") ->  | CL55: =+IF(requisitos!CV2=1,1,"") ->  | CM55: =+IF(requisitos!CW2=1,1,"") ->  | CN55: =+IF(requisitos!CX2=1,1,"") ->  | CO55: =+IF(requisitos!CY2=1,1,"") ->  | CP55: =+IF(requisitos!CZ2=1,1,"") ->  | CQ55: =+IF(requisitos!DA2=1,1,"") ->  | CR55: =+IF(requisitos!DB2=1,1,"") ->  | CS55: =+IF(requisitos!DC2=1,1,"") ->  | CT55: =+IF(requisitos!DD2=1,1,"") ->  | CU55: =+IF(requisitos!DE2=1,1,"") ->  | CV55: =+IF(requisitos!DF2=1,1,"") ->  | CW55: =+IF(requisitos!DG2=1,1,"") ->  | CX55: =+IF(requisitos!DH2=1,1,"") ->  | CY55: =+IF(requisitos!DI2=1,1,"") ->  | CZ55: =+IF(requisitos!DJ2=1,1,"") ->  | DA55: =+IF(requisitos!DK2=1,1,"") ->  | DB55: =+IF(requisitos!DL2=1,1,"") ->  | DC55: =+IF(requisitos!DM2=1,1,"") ->  | DD55: =+IF(requisitos!DN2=1,1,"") ->  | DE55: =+IF(requisitos!DO2=1,1,"") ->  | DF55: =+IF(requisitos!DP2=1,1,"") ->  | DG55: =+IF(requisitos!DQ2=1,1,"") ->  | DH55: =+IF(requisitos!DR2=1,1,"") ->  | DI55: =+IF(requisitos!DS2=1,1,"") ->  | DJ55: =+IF(requisitos!DT2=1,1,"") ->  | DK55: =+IF(requisitos!DU2=1,1,"") ->  | DL55: =+IF(requisitos!DV2=1,1,"") ->  | DM55: =+IF(requisitos!DW2=1,1,"") ->  | DN55: =+IF(requisitos!DX2=1,1,"") ->  | DO55: =+IF(requisitos!DY2=1,1,"") ->  | DP55: =+IF(requisitos!DZ2=1,1,"") ->  | DQ55: =+IF(requisitos!EA2=1,1,"") ->  | DR55: =+IF(requisitos!EB2=1,1,"") ->  | DS55: =+IF(requisitos!EC2=1,1,"") ->  | DT55: =+IF(requisitos!ED2=1,1,"") ->  | DU55: =+IF(requisitos!EE2=1,1,"") ->  | DV55: =+IF(requisitos!EF2=1,1,"") ->  | DW55: =+IF(requisitos!EG2=1,1,"") ->  | DX55: =+IF(requisitos!EH2=1,1,"") ->  | DY55: =+IF(requisitos!EI2=1,1,"") ->  | DZ55: =+IF(requisitos!EJ2=1,1,"") ->  | EA55: =+IF(requisitos!EK2=1,1,"") ->  | EB55: =+IF(requisitos!EL2=1,1,"") ->  | EC55: =+IF(requisitos!EM2=1,1,"") ->  | ED55: =+IF(requisitos!EN2=1,1,"") ->  | EE55: =+IF(requisitos!EO2=1,1,"") ->  | EF55: =+IF(requisitos!EP2=1,1,"") ->  | EG55: =+IF(requisitos!EQ2=1,1,"") ->  | EH55: =+IF(requisitos!ER2=1,1,"") ->  | EI55: =+IF(requisitos!ES2=1,1,"") ->  | EJ55: =+IF(requisitos!ET2=1,1,"") ->  | EK55: =+IF(requisitos!EU2=1,1,"") ->  | EL55: =+IF(requisitos!EV2=1,1,"") ->  | EM55: =+IF(requisitos!EW2=1,1,"") ->  | EN55: =+IF(requisitos!EX2=1,1,"") ->  | EO55: =+IF(requisitos!EY2=1,1,"") ->  | EP55: =+IF(requisitos!EZ2=1,1,"") ->  | EQ55: =+IF(requisitos!FA2=1,1,"") ->  | ER55: =+IF(requisitos!FB2=1,1,"") ->  | ES55: =+IF(requisitos!FC2=1,1,"") ->  | ET55: =+IF(requisitos!FD2=1,1,"") ->  | EU55: =+IF(requisitos!FE2=1,1,"") ->  | EV55: =+IF(requisitos!FF2=1,1,"") ->  | EW55: =+IF(requisitos!FG2=1,1,"") ->  | EX55: =+IF(requisitos!FH2=1,1,"") ->  | EY55: =+IF(requisitos!FI2=1,1,"") ->  | EZ55: =+IF(requisitos!FJ2=1,1,"") ->  | FA55: =+IF(requisitos!FK2=1,1,"") ->  | FB55: =+IF(requisitos!FL2=1,1,"") ->  | FC55: =+IF(requisitos!FM2=1,1,"") ->  | FD55: =+IF(requisitos!FN2=1,1,"") ->  | FE55: =+IF(requisitos!FO2=1,1,"") ->  | FF55: =+IF(requisitos!FP2=1,1,"") ->  | FG55: =+IF(requisitos!FQ2=1,1,"") ->  | FH55: =+IF(requisitos!FR2=1,1,"") ->  | FI55: =+IF(requisitos!FS2=1,1,"") ->  | FJ55: =+IF(requisitos!FT2=1,1,"") ->  | FK55: =+IF(requisitos!FU2=1,1,"") ->  | FL55: =+IF(requisitos!FV2=1,1,"") ->  | FM55: =+IF(requisitos!FW2=1,1,"") ->  | FN55: =+IF(requisitos!FX2=1,1,"") ->  | FO55: =+IF(requisitos!FY2=1,1,"") ->  | FP55: =+IF(requisitos!FZ2=1,1,"") ->  | FQ55: =+IF(requisitos!GA2=1,1,"") ->  | FR55: =+IF(requisitos!GB2=1,1,"") ->  | FS55: =+IF(requisitos!GC2=1,1,"") ->  | FT55: =+IF(requisitos!GD2=1,1,"") ->  | FU55: =+IF(requisitos!GE2=1,1,"") ->  | FV55: =+IF(requisitos!GF2=1,1,"") ->  | FW55: =+IF(requisitos!GG2=1,1,"") ->  | FX55: =+IF(requisitos!GH2=1,1,"") ->  | FY55: =+IF(requisitos!GI2=1,1,"") ->  | FZ55: =+IF(requisitos!GJ2=1,1,"") ->  | GA55: =+IF(requisitos!GK2=1,1,"") ->  | GB55: =+IF(requisitos!GL2=1,1,"") ->  | GC55: =+IF(requisitos!GM2=1,1,"") ->  | GD55: =+IF(requisitos!GN2=1,1,"") ->  | GE55: =+IF(requisitos!GO2=1,1,"") ->  | GF55: =+IF(requisitos!GP2=1,1,"") ->  | GG55: =+IF(requisitos!GQ2=1,1,"") ->  | GH55: =+IF(requisitos!GR2=1,1,"") ->  | GI55: =+IF(requisitos!GS2=1,1,"") ->  | GJ55: =+IF(requisitos!GT2=1,1,"") ->  | GK55: =+IF(requisitos!GU2=1,1,"") ->  | GL55: =+IF(requisitos!GV2=1,1,"") ->  | GM55: =+IF(requisitos!GW2=1,1,"") ->  | GN55: =+IF(requisitos!GX2=1,1,"") ->  | GO55: =+IF(requisitos!GY2=1,1,"") ->  | GP55: =+IF(requisitos!GZ2=1,1,"") ->  | GQ55: =+IF(requisitos!HA2=1,1,"") ->  | GR55: =+IF(requisitos!HB2=1,1,"") ->  | GS55: =+IF(requisitos!HC2=1,1,"") ->  | GT55: =+IF(requisitos!HD2=1,1,"") ->  | GU55: =+IF(requisitos!HE2=1,1,"") ->  | GV55: =+IF(requisitos!HF2=1,1,"") ->  | GW55: =+IF(requisitos!HG2=1,1,"") ->  | GX55: =+IF(requisitos!HH2=1,1,"") ->  | GY55: =+IF(requisitos!HI2=1,1,"") ->  | GZ55: =+IF(requisitos!HJ2=1,1,"") ->  | HA55: =+IF(requisitos!HK2=1,1,"") ->  | HB55: =+IF(requisitos!HL2=1,1,"") ->  | HC55: =+IF(requisitos!HM2=1,1,"") ->  | HD55: =+IF(requisitos!HN2=1,1,"") ->  | HE55: =+IF(requisitos!HO2=1,1,"") ->  | HF55: =+IF(requisitos!HP2=1,1,"") ->  | HG55: =+IF(requisitos!HQ2=1,1,"") ->  | HH55: =+IF(requisitos!HR2=1,1,"") ->  | HI55: =+IF(requisitos!HS2=1,1,"") ->  | HJ55: =+IF(requisitos!HT2=1,1,"") ->  | HK55: =+IF(requisitos!HU2=1,1,"") ->  | HL55: =+IF(requisitos!HV2=1,1,"") ->  | HM55: =+IF(requisitos!HW2=1,1,"") ->  | HN55: =+IF(requisitos!HX2=1,1,"") ->  | HO55: =+IF(requisitos!HY2=1,1,"") ->  | HP55: =+IF(requisitos!HZ2=1,1,"") ->  | HQ55: =+IF(requisitos!IA2=1,1,"") ->  | HR55: =+IF(requisitos!IB2=1,1,"") ->  | HS55: =+IF(requisitos!IC2=1,1,"") ->  | HT55: =+IF(requisitos!ID2=1,1,"") ->  | HU55: =+IF(requisitos!IE2=1,1,"") ->  | HV55: =+IF(requisitos!IF2=1,1,"") ->  | HW55: =+IF(requisitos!IG2=1,1,"") ->  | HX55: =+IF(requisitos!IH2=1,1,"") ->  | HY55: =+IF(requisitos!II2=1,1,"") ->  | HZ55: =+IF(requisitos!IJ2=1,1,"") ->  | IA55: =+IF(requisitos!IK2=1,1,"") ->  | IB55: =+IF(requisitos!IL2=1,1,"") ->  | IC55: =+IF(requisitos!IM2=1,1,"") ->  | ID55: =+IF(requisitos!IN2=1,1,"") ->  | IE55: =+IF(requisitos!IO2=1,1,"") ->  | IF55: =+IF(requisitos!IP2=1,1,"") ->  | IG55: =+IF(requisitos!IQ2=1,1,"") ->  | IH55: =+IF(requisitos!IR2=1,1,"") ->  | II55: =+IF(requisitos!IS2=1,1,"") ->  | IJ55: =+IF(requisitos!IT2=1,1,"") ->  | IK55: =+IF(requisitos!IU2=1,1,"") ->  | IL55: =+IF(requisitos!IV2=1,1,"") ->  | IM55: =+IF(requisitos!#REF!=1,1,"") ->  | IN55: =+IF(requisitos!#REF!=1,1,"") ->  | IO55: =+IF(requisitos!#REF!=1,1,"") ->  | IP55: =+IF(requisitos!#REF!=1,1,"") ->  | IQ55: =+IF(requisitos!#REF!=1,1,"") ->  | IR55: =+IF(requisitos!#REF!=1,1,"") ->  | IS55: =+IF(requisitos!#REF!=1,1,"") ->  | IT55: =+IF(requisitos!#REF!=1,1,"") ->  | IU55: =+IF(requisitos!#REF!=1,1,"") ->  | IV55: =+IF(requisitos!AE2=1,1,"") -> 1
A56: DOMICILIO | U56: =+IF(S56="",1,2) -> 1 | V56: =+IF(T56="",1,2) -> 1 | W56: 2 | X56: 2 | Y56: 2 | Z56: 2 | AA56: 2 | AB56: 2 | AC56: 2 | AD56: 2 | AE56: 2 | AF56: 2 | AG56: 2 | AH56: 2 | AI56: 2 | AJ56: 2 | AK56: 2 | AL56: =+IF(AJ56="",1,2) -> 2 | AM56: 2 | AN56: 2 | AO56: 2 | AP56: 2 | AQ56: 2 | AR56: 2 | AS56: 2 | AT56: 2 | AU56: 2 | AV56: 2 | AW56: 2 | AX56: 2 | AY56: 2 | AZ56: 2 | BA56: 2 | BB56: =+IF(AZ56="",1,2) -> 2 | BC56: 2 | BD56: 2 | BE56: 2 | BF56: 2 | BG56: 2 | BH56: 2 | BI56: 2 | BJ56: 2 | BK56: 2 | BL56: 2 | BM56: 2 | BN56: 2 | BO56: 2 | BP56: 2 | BQ56: 2 | BR56: =+IF(BP56="",1,2) -> 2 | BS56: 2 | BT56: 2 | BU56: 2 | BV56: 2 | BW56: 2 | BX56: 2 | BY56: 2 | BZ56: 2 | CA56: 2 | CB56: 2 | CC56: 2 | CD56: 2 | CE56: 2 | CF56: 2 | CG56: 2 | CH56: =+IF(CF56="",1,2) -> 2 | CI56: 2 | CJ56: 2 | CK56: 2 | CL56: 2 | CM56: 2 | CN56: 2 | CO56: 2 | CP56: 2 | CQ56: 2 | CR56: 2 | CS56: 2 | CT56: 2 | CU56: 2 | CV56: 2 | CW56: 2 | CX56: =+IF(CV56="",1,2) -> 2 | CY56: 2 | CZ56: 2 | DA56: 2 | DB56: 2 | DC56: 2 | DD56: 2 | DE56: 2 | DF56: 2 | DG56: 2 | DH56: 2 | DI56: 2 | DJ56: 2 | DK56: 2 | DL56: 2 | DM56: 2 | DN56: =+IF(DL56="",1,2) -> 2 | DO56: 2 | DP56: 2 | DQ56: 2 | DR56: 2 | DS56: 2 | DT56: 2 | DU56: 2 | DV56: 2 | DW56: 2 | DX56: 2 | DY56: 2 | DZ56: 2 | EA56: 2 | EB56: 2 | EC56: 2 | ED56: =+IF(EB56="",1,2) -> 2 | EE56: 2 | EF56: 2 | EG56: 2 | EH56: 2 | EI56: 2 | EJ56: 2 | EK56: 2 | EL56: 2 | EM56: 2 | EN56: 2 | EO56: 2 | EP56: 2 | EQ56: 2 | ER56: 2 | ES56: 2 | ET56: =+IF(ER56="",1,2) -> 2 | EU56: 2 | EV56: 2 | EW56: 2 | EX56: 2 | EY56: 2 | EZ56: 2 | FA56: 2 | FB56: 2 | FC56: 2 | FD56: 2 | FE56: 2 | FF56: 2 | FG56: 2 | FH56: 2 | FI56: 2 | FJ56: =+IF(FH56="",1,2) -> 2 | FK56: 2 | FL56: 2 | FM56: 2 | FN56: 2 | FO56: 2 | FP56: 2 | FQ56: 2 | FR56: 2 | FS56: 2 | FT56: 2 | FU56: 2 | FV56: 2 | FW56: 2 | FX56: 2 | FY56: 2 | FZ56: =+IF(FX56="",1,2) -> 2 | GA56: 2 | GB56: 2 | GC56: 2 | GD56: 2 | GE56: 2 | GF56: 2 | GG56: 2 | GH56: 2 | GI56: 2 | GJ56: 2 | GK56: 2 | GL56: 2 | GM56: 2 | GN56: 2 | GO56: 2 | GP56: =+IF(GN56="",1,2) -> 2 | GQ56: 2 | GR56: 2 | GS56: 2 | GT56: 2 | GU56: 2 | GV56: 2 | GW56: 2 | GX56: 2 | GY56: 2 | GZ56: 2 | HA56: 2 | HB56: 2 | HC56: 2 | HD56: 2 | HE56: 2 | HF56: =+IF(HD56="",1,2) -> 2 | HG56: 2 | HH56: 2 | HI56: 2 | HJ56: 2 | HK56: 2 | HL56: 2 | HM56: 2 | HN56: 2 | HO56: 2 | HP56: 2 | HQ56: 2 | HR56: 2 | HS56: 2 | HT56: 2 | HU56: 2 | HV56: =+IF(HT56="",1,2) -> 2 | HW56: 2 | HX56: 2 | HY56: 2 | HZ56: 2 | IA56: 2 | IB56: 2 | IC56: 2 | ID56: 2 | IE56: 2 | IF56: 2 | IG56: 2 | IH56: 2 | II56: 2 | IJ56: 2 | IK56: 2 | IL56: =+IF(IJ56="",1,2) -> 2 | IM56: 2 | IN56: 2 | IO56: 2 | IP56: 2 | IQ56: 2 | IR56: 2 | IS56: 2 | IT56: 2 | IU56: 2 | IV56: =+IF(T56="",1,2) -> 1
A57: CALLE | U57: =+IF(S57="",1,2) -> 1 | V57: 1 | W57: 2 | X57: 2 | Y57: 2 | Z57: 2 | AA57: 2 | AB57: 2 | AC57: 2 | AD57: 2 | AE57: 2 | AF57: 2 | AG57: 2 | AH57: 2 | AI57: 2 | AJ57: 2 | AK57: 2 | AL57: 2 | AM57: 2 | AN57: 2 | AO57: 2 | AP57: 2 | AQ57: 2 | AR57: 2 | AS57: 2 | AT57: 2 | AU57: 2 | AV57: 2 | AW57: 2 | AX57: 2 | AY57: 2 | AZ57: 2 | BA57: 2 | BB57: 2 | BC57: 2 | BD57: 2 | BE57: 2 | BF57: 2 | BG57: 2 | BH57: 2 | BI57: 2 | BJ57: 2 | BK57: 2 | BL57: 2 | BM57: 2 | BN57: 2 | BO57: 2 | BP57: 2 | BQ57: 2 | BR57: 2 | BS57: 2 | BT57: 2 | BU57: 2 | BV57: 2 | BW57: 2 | BX57: 2 | BY57: 2 | BZ57: 2 | CA57: 2 | CB57: 2 | CC57: 2 | CD57: 2 | CE57: 2 | CF57: 2 | CG57: 2 | CH57: 2 | CI57: 2 | CJ57: 2 | CK57: 2 | CL57: 2 | CM57: 2 | CN57: 2 | CO57: 2 | CP57: 2 | CQ57: 2 | CR57: 2 | CS57: 2 | CT57: 2 | CU57: 2 | CV57: 2 | CW57: 2 | CX57: 2 | CY57: 2 | CZ57: 2 | DA57: 2 | DB57: 2 | DC57: 2 | DD57: 2 | DE57: 2 | DF57: 2 | DG57: 2 | DH57: 2 | DI57: 2 | DJ57: 2 | DK57: 2 | DL57: 2 | DM57: 2 | DN57: 2 | DO57: 2 | DP57: 2 | DQ57: 2 | DR57: 2 | DS57: 2 | DT57: 2 | DU57: 2 | DV57: 2 | DW57: 2 | DX57: 2 | DY57: 2 | DZ57: 2 | EA57: 2 | EB57: 2 | EC57: 2 | ED57: 2 | EE57: 2 | EF57: 2 | EG57: 2 | EH57: 2 | EI57: 2 | EJ57: 2 | EK57: 2 | EL57: 2 | EM57: 2 | EN57: 2 | EO57: 2 | EP57: 2 | EQ57: 2 | ER57: 2 | ES57: 2 | ET57: 2 | EU57: 2 | EV57: 2 | EW57: 2 | EX57: 2 | EY57: 2 | EZ57: 2 | FA57: 2 | FB57: 2 | FC57: 2 | FD57: 2 | FE57: 2 | FF57: 2 | FG57: 2 | FH57: 2 | FI57: 2 | FJ57: 2 | FK57: 2 | FL57: 2 | FM57: 2 | FN57: 2 | FO57: 2 | FP57: 2 | FQ57: 2 | FR57: 2 | FS57: 2 | FT57: 2 | FU57: 2 | FV57: 2 | FW57: 2 | FX57: 2 | FY57: 2 | FZ57: 2 | GA57: 2 | GB57: 2 | GC57: 2 | GD57: 2 | GE57: 2 | GF57: 2 | GG57: 2 | GH57: 2 | GI57: 2 | GJ57: 2 | GK57: 2 | GL57: 2 | GM57: 2 | GN57: 2 | GO57: 2 | GP57: 2 | GQ57: 2 | GR57: 2 | GS57: 2 | GT57: 2 | GU57: 2 | GV57: 2 | GW57: 2 | GX57: 2 | GY57: 2 | GZ57: 2 | HA57: 2 | HB57: 2 | HC57: 2 | HD57: 2 | HE57: 2 | HF57: 2 | HG57: 2 | HH57: 2 | HI57: 2 | HJ57: 2 | HK57: 2 | HL57: 2 | HM57: 2 | HN57: 2 | HO57: 2 | HP57: 2 | HQ57: 2 | HR57: 2 | HS57: 2 | HT57: 2 | HU57: 2 | HV57: 2 | HW57: 2 | HX57: 2 | HY57: 2 | HZ57: 2 | IA57: 2 | IB57: 2 | IC57: 2 | ID57: 2 | IE57: 2 | IF57: 2 | IG57: 2 | IH57: 2 | II57: 2 | IJ57: 2 | IK57: 2 | IL57: 2 | IM57: 2 | IN57: 2 | IO57: 2 | IP57: 2 | IQ57: 2 | IR57: 2 | IS57: 2 | IT57: 2 | IU57: 2 | IV57: =+IF(T57="",1,2) -> 1
A58: NÚMERO | U58: =+IF(S58="",1,2) -> 1 | V58: 1 | W58: 2 | X58: 2 | Y58: 2 | Z58: 2 | AA58: 2 | AB58: 2 | AC58: 2 | AD58: 2 | AE58: 2 | AF58: 2 | AG58: 2 | AH58: 2 | AI58: 2 | AJ58: 2 | AK58: 2 | AL58: 2 | AM58: 2 | AN58: 2 | AO58: 2 | AP58: 2 | AQ58: 2 | AR58: 2 | AS58: 2 | AT58: 2 | AU58: 2 | AV58: 2 | AW58: 2 | AX58: 2 | AY58: 2 | AZ58: 2 | BA58: 2 | BB58: 2 | BC58: 2 | BD58: 2 | BE58: 2 | BF58: 2 | BG58: 2 | BH58: 2 | BI58: 2 | BJ58: 2 | BK58: 2 | BL58: 2 | BM58: 2 | BN58: 2 | BO58: 2 | BP58: 2 | BQ58: 2 | BR58: 2 | BS58: 2 | BT58: 2 | BU58: 2 | BV58: 2 | BW58: 2 | BX58: 2 | BY58: 2 | BZ58: 2 | CA58: 2 | CB58: 2 | CC58: 2 | CD58: 2 | CE58: 2 | CF58: 2 | CG58: 2 | CH58: 2 | CI58: 2 | CJ58: 2 | CK58: 2 | CL58: 2 | CM58: 2 | CN58: 2 | CO58: 2 | CP58: 2 | CQ58: 2 | CR58: 2 | CS58: 2 | CT58: 2 | CU58: 2 | CV58: 2 | CW58: 2 | CX58: 2 | CY58: 2 | CZ58: 2 | DA58: 2 | DB58: 2 | DC58: 2 | DD58: 2 | DE58: 2 | DF58: 2 | DG58: 2 | DH58: 2 | DI58: 2 | DJ58: 2 | DK58: 2 | DL58: 2 | DM58: 2 | DN58: 2 | DO58: 2 | DP58: 2 | DQ58: 2 | DR58: 2 | DS58: 2 | DT58: 2 | DU58: 2 | DV58: 2 | DW58: 2 | DX58: 2 | DY58: 2 | DZ58: 2 | EA58: 2 | EB58: 2 | EC58: 2 | ED58: 2 | EE58: 2 | EF58: 2 | EG58: 2 | EH58: 2 | EI58: 2 | EJ58: 2 | EK58: 2 | EL58: 2 | EM58: 2 | EN58: 2 | EO58: 2 | EP58: 2 | EQ58: 2 | ER58: 2 | ES58: 2 | ET58: 2 | EU58: 2 | EV58: 2 | EW58: 2 | EX58: 2 | EY58: 2 | EZ58: 2 | FA58: 2 | FB58: 2 | FC58: 2 | FD58: 2 | FE58: 2 | FF58: 2 | FG58: 2 | FH58: 2 | FI58: 2 | FJ58: 2 | FK58: 2 | FL58: 2 | FM58: 2 | FN58: 2 | FO58: 2 | FP58: 2 | FQ58: 2 | FR58: 2 | FS58: 2 | FT58: 2 | FU58: 2 | FV58: 2 | FW58: 2 | FX58: 2 | FY58: 2 | FZ58: 2 | GA58: 2 | GB58: 2 | GC58: 2 | GD58: 2 | GE58: 2 | GF58: 2 | GG58: 2 | GH58: 2 | GI58: 2 | GJ58: 2 | GK58: 2 | GL58: 2 | GM58: 2 | GN58: 2 | GO58: 2 | GP58: 2 | GQ58: 2 | GR58: 2 | GS58: 2 | GT58: 2 | GU58: 2 | GV58: 2 | GW58: 2 | GX58: 2 | GY58: 2 | GZ58: 2 | HA58: 2 | HB58: 2 | HC58: 2 | HD58: 2 | HE58: 2 | HF58: 2 | HG58: 2 | HH58: 2 | HI58: 2 | HJ58: 2 | HK58: 2 | HL58: 2 | HM58: 2 | HN58: 2 | HO58: 2 | HP58: 2 | HQ58: 2 | HR58: 2 | HS58: 2 | HT58: 2 | HU58: 2 | HV58: 2 | HW58: 2 | HX58: 2 | HY58: 2 | HZ58: 2 | IA58: 2 | IB58: 2 | IC58: 2 | ID58: 2 | IE58: 2 | IF58: 2 | IG58: 2 | IH58: 2 | II58: 2 | IJ58: 2 | IK58: 2 | IL58: 2 | IM58: 2 | IN58: 2 | IO58: 2 | IP58: 2 | IQ58: 2 | IR58: 2 | IS58: 2 | IT58: 2 | IU58: 2 | IV58: =+IF(T58="",1,2) -> 1
A59: COLONIA | U59: =+SUM(U55:U58) -> 4 | V59: =+SUM(V55:V58) -> 3 | W59: 6 | X59: 6 | Y59: 6 | Z59: 6 | AA59: 6 | AB59: 6 | AC59: 6 | AD59: 6 | AE59: 6 | AF59: 6 | AG59: 6 | AH59: 6 | AI59: 6 | AJ59: 6 | AK59: 6 | AL59: 6 | AM59: 6 | AN59: 6 | AO59: 6 | AP59: 6 | AQ59: 6 | AR59: 6 | AS59: 6 | AT59: 6 | AU59: 6 | AV59: 6 | AW59: 6 | AX59: 6 | AY59: 6 | AZ59: 6 | BA59: 6 | BB59: 6 | BC59: 6 | BD59: 6 | BE59: 6 | BF59: 6 | BG59: 6 | BH59: 6 | BI59: 6 | BJ59: 6 | BK59: 6 | BL59: 6 | BM59: 6 | BN59: 6 | BO59: 6 | BP59: 6 | BQ59: 6 | BR59: 6 | BS59: 6 | BT59: 6 | BU59: 6 | BV59: 6 | BW59: 6 | BX59: 6 | BY59: 6 | BZ59: 6 | CA59: 6 | CB59: 6 | CC59: 6 | CD59: 6 | CE59: 6 | CF59: 6 | CG59: 6 | CH59: =+SUM(CH55:CH58) -> 6 | CI59: 6 | CJ59: 6 | CK59: 6 | CL59: 6 | CM59: 6 | CN59: 6 | CO59: 6 | CP59: 6 | CQ59: 6 | CR59: 6 | CS59: 6 | CT59: 6 | CU59: 6 | CV59: 6 | CW59: 6 | CX59: 6 | CY59: 6 | CZ59: 6 | DA59: 6 | DB59: 6 | DC59: 6 | DD59: 6 | DE59: 6 | DF59: 6 | DG59: 6 | DH59: 6 | DI59: 6 | DJ59: 6 | DK59: 6 | DL59: 6 | DM59: 6 | DN59: 6 | DO59: 6 | DP59: 6 | DQ59: 6 | DR59: 6 | DS59: 6 | DT59: 6 | DU59: 6 | DV59: 6 | DW59: 6 | DX59: 6 | DY59: 6 | DZ59: 6 | EA59: 6 | EB59: 6 | EC59: 6 | ED59: 6 | EE59: 6 | EF59: 6 | EG59: 6 | EH59: 6 | EI59: 6 | EJ59: 6 | EK59: 6 | EL59: 6 | EM59: 6 | EN59: 6 | EO59: 6 | EP59: 6 | EQ59: 6 | ER59: 6 | ES59: 6 | ET59: =+SUM(ET55:ET58) -> 6 | EU59: 6 | EV59: 6 | EW59: 6 | EX59: 6 | EY59: 6 | EZ59: 6 | FA59: 6 | FB59: 6 | FC59: 6 | FD59: 6 | FE59: 6 | FF59: 6 | FG59: 6 | FH59: 6 | FI59: 6 | FJ59: 6 | FK59: 6 | FL59: 6 | FM59: 6 | FN59: 6 | FO59: 6 | FP59: 6 | FQ59: 6 | FR59: 6 | FS59: 6 | FT59: 6 | FU59: 6 | FV59: 6 | FW59: 6 | FX59: 6 | FY59: 6 | FZ59: 6 | GA59: 6 | GB59: 6 | GC59: 6 | GD59: 6 | GE59: 6 | GF59: 6 | GG59: 6 | GH59: 6 | GI59: 6 | GJ59: 6 | GK59: 6 | GL59: 6 | GM59: 6 | GN59: 6 | GO59: 6 | GP59: 6 | GQ59: 6 | GR59: 6 | GS59: 6 | GT59: 6 | GU59: 6 | GV59: 6 | GW59: 6 | GX59: 6 | GY59: 6 | GZ59: 6 | HA59: 6 | HB59: 6 | HC59: 6 | HD59: 6 | HE59: 6 | HF59: =+SUM(HF55:HF58) -> 6 | HG59: 6 | HH59: 6 | HI59: 6 | HJ59: 6 | HK59: 6 | HL59: 6 | HM59: 6 | HN59: 6 | HO59: 6 | HP59: 6 | HQ59: 6 | HR59: 6 | HS59: 6 | HT59: 6 | HU59: 6 | HV59: 6 | HW59: 6 | HX59: 6 | HY59: 6 | HZ59: 6 | IA59: 6 | IB59: 6 | IC59: 6 | ID59: 6 | IE59: 6 | IF59: 6 | IG59: 6 | IH59: 6 | II59: 6 | IJ59: 6 | IK59: 6 | IL59: 6 | IV59: 4
A60: CIUDAD | U60: =+IF(requisitos!AE2=2,1,IF(requisitos!AE2=3,1,"")) -> 
A61: DELEG. O MUNICIPIO | U61: =+IF(S61="",1,2) -> 1
A62: ENTIDAD FEDERATIVA (ESTADO) | U62: =+IF(S62="",1,2) -> 1
A63: CÓDIGO POSTAL | U63: =+IF(S63="",1,2) -> 1
A64: TELEFONOS | U64: =+SUM(U60:IV63) -> 3
A65: CORREO ELECTRÓNICO
I66: =IF(requisitos!C28=1,"INDICAR REGIMEN DE PROPIEDAD","") -> 
A68: DATOS DE LA UNIDAD DE VALUACIÓN ASIGNADA
A69: NOMBRE (Razón Social). | N69: CIUDAD.
A71: ENTIDAD | G71: TELÉFONOS | N71: EMAIL.
A86: COMENTARIOS ADICIONALES:
A87: NOTAS:
A88: 1.- | B88: PARA ATENDER LA PRESENTE SOLICITUD, ES NECESARIO PROPORCIONAR LOS DATOS ANTES REQUERIDOS, EL NOMBRE Y FIRMA DEL SOLICITANTE.
B89: LA FALTA DE INFORMACIÓN Y/O FIRMA DEL SOLICITANTE SERÁN CAUSA DE SUSPENSIÓN DE SU ATENCIÓN.
A90: 2.- | B90: EN CASO DE GENERARSE GASTOS POR CONCEPTOS DE VIÁTICOS Y TRASLADOS, ESTOS SERÁN CON CARGO AL SOLICITANTE.
B92: =+IF(A15="DATOS DEL EMPLEADO","","USUARIO / BANCO") -> USUARIO / BANCO | H92: FIRMA SOLICITANTE DEL AVALÚO.
H93: EN CASO DE QUE EL MONTO DEL ANTICIPO A QUE SE REFIERE LA PRESENTE SOLICITUD NO SEA SUFICIENTE PARA CUBRIR EL TOTAL DEL PAGO DE LOS HONORARIOS POR LA ELABORACIÓN DEL AVALÚO Y DE QUE EN LA CUENTA DE CHEQUES QUE TENGO ABIERTA EN BANCO SANTANDER SOCIEDAD ANÓNIMA, CUENTE CON LOS FONDOS SUFICIENTES PARA CUBRIR LA DIFERENCIA EXISTENTE, EN ESTE ACTO AUTORIZO A BANCO SANTANDER SOCIEDAD ANÓNIMA PARA CARGAR EN MI CUENTA DE CHEQUES LA DIFERENCIA QUE EXISTA ENTRE EL MONTO DEL ANTICIPO Y LOS HONORARIOS DEL AVALÚO.
H98: =+IF(requisitos!I14=5,'Hipoteca Free'!B120,"") -> 
A106: =+E17 -> 0 | H106: =+G52 -> 0
T107: RIES-046 (052025)
B120: EN ESTE ACTO AUTORIZO A BANCO SANTANDER (MEXICO),SOCIEDAD ANONIMA, INSTITUCION DE BANCA MULTIPLE/SANTANDER HIPOTECARIO, S.A. DE C.V. SOFOM ER. A QUE A TRAVES DE LA EMPRESA QUE DESIGNE SE LLEVE A CABO EL PAGO PARA LA GENERACIÓN DE LA CLAVE UNICA DE VIVIENDA (CUV) NECESARIA PARA MI CREDITO.

Sheet anticipos (hidden)
B1: TIPO | D1: RANGO DE VALOR VIVIENDA | E1: PROPUESTA COBRO MERCADO ABIERTO
A3: 1 | B3: HIPOTECA FREE | C3: 1
B4: HIPOTECA INTEGRAL | D4: menos de 500,000 | E4: 2000
B5: OTROS | D5: de 500,001 a 1,000,000 | E5: 3000
D6: de 1,000,001 a 1,500,000 | E6: 4500
D7: de 1,500,001 a 2,000,000 | E7: 6000
D8: de 2,000,001 a 2,500,000 | E8: 7000
D9: de 2,500,001 a 3,000,000 | E9: 9000
D10: de 3,000,001 a 3,500,000 | E10: 10000
D11: de 3,500,001 a 4,000,000 | E11: 11000
D12: de 4,000,001 a 4,500,000 | E12: 13500
D13: de 4,500,001 a 5,500,000 | E13: 14000
D14: de 5,500,001 a 6,000,000 | E14: 17000
D15: de 6,000,001 a 6,500,000 | E15: 19000
D16: de 6,500,001 a 8,000,000 | E16: 20000
D17: de 8,000,001 a 10,000,000 | E17: 22000
D18: mas de 10,000,000 | E18: 24000

Sheet RESTO DE PRODUCTOS
J3: =+IF(requisitos!I14=9,"SOLICITUD DE AVALUO Y ESTUDIO DE COSTOS",IF(requisitos!I14=10,"SOLICITUD DE AVALUO Y ESTUDIO DE COSTOS","SOLICITUD AVALUO")) -> SOLICITUD AVALUO
Q4: HIPOTECARIO
Q5: FECHA DE EXPEDICIÓN
A6: BANCO SANTANDER MEXICO,SOCIEDAD ANONIMA, INSTITUCION DE BANCA MULTIPLE. | Q6: =NOW() -> 2025-07-08T14:38:15.680
A7: Grupo Financiero Santander.
L10: FAVOR DE MARCAR CON EL CURSOR LA OPCION CORRESPONDIENTE.
O13: =+IF(requisitos!I14=3,requisitos!R14,'CALCULO Empleados'!M21) -> FALSE | Q13: =+IF(O13<18000,O13,18000) -> 18000
Q14: =IF(requisitos!I14=3,requisitos!R14,IF(requisitos!I14=4,requisitos!R15,IF(requisitos!I14=5,requisitos!R16,IF(requisitos!I14=9,requisitos!R20,IF(requisitos!I14=10,requisitos!R21,IF(requisitos!I14=11,requisitos!O22,requisitos!R12)))))) -> 1913
A15: =IF(requisitos!$T$3=2,"FUNCIONARIO QUE ATIENDE AL CLIENTE","DATOS DEL EMPLEADO") -> FUNCIONARIO QUE ATIENDE AL CLIENTE | N15: =+IF(Q15<1412.88,"$1,413.00",Q15) -> 1913 | Q15: =+IF(requisitos!T3=1,'RESTO DE PRODUCTOS'!Q13,'RESTO DE PRODUCTOS'!Q14) -> 1913
A17: NOMBRE | H17: PUESTO | P17: TEL.
A20: =+IF(requisitos!I14=3,"VALOR ESTIMADO DEL INMUEBLE",IF(requisitos!I14=4,"VALOR ESTIMADO DEL INMUEBLE",IF(requisitos!I14=6,"VALOR ESTIMADO DEL INMUEBLE",IF(requisitos!I14=7,"VALOR ESTIMADO DEL INMUEBLE",IF(requisitos!I14=9,"V A L O R P R O Y E C T O",IF(requisitos!I14=10,"V A L O R P R O Y E C T O","P R E C I O D E C O M P R A V E N T A")))))) -> P R E C I O D E C O M P R A V E N T A | K20: =+IF(H20="","FALTA CAPTURAR COMPRAVENTA/VALOR ESTIMADO","") -> FALTA CAPTURAR COMPRAVENTA/VALOR ESTIMADO | N20: CALCULA EL HONORARIO: | T20: =IF(anticipos!C3=1,anticipos!E3,IF(anticipos!C3=2,anticipos!E4,IF(anticipos!C3=3,anticipos!E5,IF(anticipos!C3=4,anticipos!E6,IF(anticipos!C3=5,anticipos!E7,IF(anticipos!C3=6,anticipos!E8,IF(anticipos!C3=7,anticipos!E9,IF(anticipos!C3=8,anticipos!E10,IF(anticipos!C3=9,anticipos!E11,IF(anticipos!C3=10,anticipos!E12,IF(anticipos!C3=11,anticipos!E13,IF(anticipos!C3=12,anticipos!E14,IF(anticipos!C3=13,anticipos!E15,IF(anticipos!C3=14,anticipos!E16,IF(anticipos!C3=15,anticipos!E17,IF(anticipos!C3=16,anticipos!E18)))))))))))))))) -> 0
A21: =+IF(requisitos!I14=9,"PONER LA SUMA DEL VALOR TERRENO + TOTAL DEL PRESUPUESTO",IF(requisitos!I14=10,"PONER LA SUMA DEL VALOR TERRENO + TOTAL DEL PRESUPUESTO","")) ->  | O21: EL VALOR DEL INMUEBLE ESTA ENTRE:
A22: =+IF(requisitos!I14=3,"PARA CREDITOS DE SUSTITUCIÓN ES NECESARIO DEPOSITAR EL HONORARIO Y LOS VIATICOS TOTALES ANTES DE SOLICITAR EL AVALÚO.",IF(requisitos!I14=4,"PARA MEJORAS DE CONDICIONES ES NECESARIO DEPOSITAR LOS VIATICOS TOTALES JUNTO CON EL ANTICIPO ANTES DE SOLICITAR EL AVALÚO."," ")) ->  | O22: =+IF(requisitos!$I$14=3,"HONORARIOS",IF(requisitos!$I$14=4,"HONORARIOS","MONTO DEL ANTICIPO")) -> MONTO DEL ANTICIPO | Q22: =IF(requisitos!$I$14=3,"$3,000.00",IF(requisitos!$I$14=4,"$3,000.00",'RESTO DE PRODUCTOS'!$T$20)) -> 0
N24: ABONAR A CUENTA 92-00061101-1
A25: TIPO DE CRÉDITO | N25: Deposito Referenciado
L26: Referencias: | N26: Folio CH. | O26: Nombre del Solicitante de crédito
O27: =+$G$52 -> 0
A30: UBICACIÓN DEL INMUEBLE A VALUAR | M30: DOCUMENTACIÓN QUE SE DEBEN ANEXAR (2 COPIAS)
A31: TIPO DE BIEN A VALUAR | G31: =IF(ISERROR(INDEX(requisitos!AF2:AF7,requisitos!AE2)),"",(INDEX(requisitos!AF2:AF7,requisitos!AE2))) -> CASA SOLA | M31: -BOLETA PREDIAL Y AGUA
A32: =+IF(requisitos!$I$14=9,"PARA CREDITO DE CONSTRUCCION DEBE SEÑALAR LA OPCION TERRENO",IF(requisitos!$I$14=10,"PARA CREDITO DE CONSTRUCCIÓN Y ADQ. TERRENO DEBE SEÑALAR EN TIPO DE BIEN A VALUAR LA OPCION TERRENO.","")) -> 
A33: CALLE | M33: -ESCRITURA ó TITULO DE PROPIEDAD
A34: NÚMERO EXT. | I34: INTERIOR. | M34: -PLANOS ARQUITECTÓNICOS | P34: =+IF(requisitos!I14=9,requisitos!H27,IF(requisitos!I14=10,requisitos!H27,"")) -> 
A35: COLONIA | M35: -COMPROBANTE PAGO ANTICIPO
A36: ENTIDAD FEDERATIVA (ESTADO)
A37: DELEG. O MUNICIPIO | M37: =+IF(requisitos!I14=9,requisitos!H28,IF(requisitos!I14=10,requisitos!H28,"")) -> 
A38: CIUDAD | M38: =IF(requisitos!AE2=2,requisitos!G27,IF(requisitos!AE2=3,requisitos!G27,"")) -> 
A39: CÓDIGO POSTAL | M39: =IF(requisitos!AE2=2,requisitos!G28,IF(requisitos!AE2=3,requisitos!G28,"")) -> 
A40: ENTRE CALLE | M40: =+IF(requisitos!AE2=2,"VIVIENDA NUEVA EN CONDOMINIO SE RECOMIENDA ANEXAR CONTRATO DE COMPRAVENTA.",IF(requisitos!AE2=3,"VIVIENDA NUEVA EN CONDOMINIO SE RECOMIENDA ANEXAR CONTRATO DE COMPRAVENTA.","")) -> 
A41: Y CALLE
A45: PERSONA QUE MOSTRARA EL INMUEBLE A VALUAR
A46: NOMBRE | M46: TELÉFONO 1 | O46: TELÉFONO 2
A51: DATOS DEL SOLICITANTE DEL CRÉDITO | J51: DATOS DEL PROPIETARIO Y DEL INMUEBLE A VALUAR
A52: NOMBRE | J52: NOMBRE
A53: =IF(OR(requisitos!$I$14=8,requisitos!$I$14=2),"NUMERO DE SEGURIDAD SOCIAL (NSS)","") ->  | J53: =IF(OR(requisitos!$I$14=8,requisitos!$I$14=2),"NUMERO DE SEGURIDAD SOCIAL (NSS)","") -> 
A54: =IF(OR(requisitos!$I$14=8,requisitos!$I$14=2),"R.F.C","") ->  | J54: =IF(OR(requisitos!$I$14=8,requisitos!$I$14=2),"R.F.C","") -> 
A55: =IF(OR(requisitos!$I$14=8,requisitos!$I$14=2),"CURP","") ->  | J55: =IF(OR(requisitos!$I$14=8,requisitos!$I$14=2),"CURP","") ->  | U55: =+IF(requisitos!AE2=1,1,"") -> 1 | V55: =+IF(requisitos!AF2=1,1,"") ->  | W55: =+IF(requisitos!AG2=1,1,"") ->  | X55: =+IF(requisitos!AH2=1,1,"") ->  | Y55: =+IF(requisitos!AI2=1,1,"") ->  | Z55: =+IF(requisitos!AJ2=1,1,"") ->  | AA55: =+IF(requisitos!AK2=1,1,"") ->  | AB55: =+IF(requisitos!AL2=1,1,"") ->  | AC55: =+IF(requisitos!AM2=1,1,"") ->  | AD55: =+IF(requisitos!AN2=1,1,"") ->  | AE55: =+IF(requisitos!AO2=1,1,"") ->  | AF55: =+IF(requisitos!AP2=1,1,"") ->  | AG55: =+IF(requisitos!AQ2=1,1,"") ->  | AH55: =+IF(requisitos!AR2=1,1,"") ->  | AI55: =+IF(requisitos!AS2=1,1,"") ->  | AJ55: =+IF(requisitos!AT2=1,1,"") ->  | AK55: =+IF(requisitos!AU2=1,1,"") ->  | AL55: =+IF(requisitos!AV2=1,1,"") ->  | AM55: =+IF(requisitos!AW2=1,1,"") ->  | AN55: =+IF(requisitos!AX2=1,1,"") ->  | AO55: =+IF(requisitos!AY2=1,1,"") ->  | AP55: =+IF(requisitos!AZ2=1,1,"") ->  | AQ55: =+IF(requisitos!BA2=1,1,"") ->  | AR55: =+IF(requisitos!BB2=1,1,"") ->  | AS55: =+IF(requisitos!BC2=1,1,"") ->  | AT55: =+IF(requisitos!BD2=1,1,"") ->  | AU55: =+IF(requisitos!BE2=1,1,"") ->  | AV55: =+IF(requisitos!BF2=1,1,"") ->  | AW55: =+IF(requisitos!BG2=1,1,"") ->  | AX55: =+IF(requisitos!BH2=1,1,"") ->  | AY55: =+IF(requisitos!BI2=1,1,"") ->  | AZ55: =+IF(requisitos!BJ2=1,1,"") ->  | BA55: =+IF(requisitos!BK2=1,1,"") ->  | BB55: =+IF(requisitos!BL2=1,1,"") ->  | BC55: =+IF(requisitos!BM2=1,1,"") ->  | BD55: =+IF(requisitos!BN2=1,1,"") ->  | BE55: =+IF(requisitos!BO2=1,1,"") ->  | BF55: =+IF(requisitos!BP2=1,1,"") ->  | BG55: =+IF(requisitos!BQ2=1,1,"") ->  | BH55: =+IF(requisitos!BR2=1,1,"") ->  | BI55: =+IF(requisitos!BS2=1,1,"") ->  | BJ55: =+IF(requisitos!BT2=1,1,"") ->  | BK55: =+IF(requisitos!BU2=1,1,"") ->  | BL55: =+IF(requisitos!BV2=1,1,"") ->  | BM55: =+IF(requisitos!BW2=1,1,"") ->  | BN55: =+IF(requisitos!BX2=1,1,"") ->  | BO55: =+IF(requisitos!BY2=1,1,"") ->  | BP55: =+IF(requisitos!BZ2=1,1,"") ->  | BQ55: =+IF(requisitos!CA2=1,1,"") ->  | BR55: =+IF(requisitos!CB2=1,1,"") ->  | BS55: =+IF(requisitos!CC2=1,1,"") ->  | BT55: =+IF(requisitos!CD2=1,1,"") ->  | BU55: =+IF(requisitos!CE2=1,1,"") ->  | BV55: =+IF(requisitos!CF2=1,1,"") ->  | BW55: =+IF(requisitos!CG2=1,1,"") ->  | BX55: =+IF(requisitos!CH2=1,1,"") ->  | BY55: =+IF(requisitos!CI2=1,1,"") ->  | BZ55: =+IF(requisitos!CJ2=1,1,"") ->  | CA55: =+IF(requisitos!CK2=1,1,"") ->  | CB55: =+IF(requisitos!CL2=1,1,"") ->  | CC55: =+IF(requisitos!CM2=1,1,"") ->  | CD55: =+IF(requisitos!CN2=1,1,"") ->  | CE55: =+IF(requisitos!CO2=1,1,"") ->  | CF55: =+IF(requisitos!CP2=1,1,"") ->  | CG55: =+IF(requisitos!CQ2=1,1,"") ->  | CH55: =+IF(requisitos!CR2=1,1,"") ->  | CI55: =+IF(requisitos!CS2=1,1,"") ->  | CJ55: =+IF(requisitos!CT2=1,1,"") ->  | CK55: =+IF(requisitos!CU2=1,1,"") ->  | CL55: =+IF(requisitos!CV2=1,1,"") ->  | CM55: =+IF(requisitos!CW2=1,1,"") ->  | CN55: =+IF(requisitos!CX2=1,1,"") ->  | CO55: =+IF(requisitos!CY2=1,1,"") ->  | CP55: =+IF(requisitos!CZ2=1,1,"") ->  | CQ55: =+IF(requisitos!DA2=1,1,"") ->  | CR55: =+IF(requisitos!DB2=1,1,"") ->  | CS55: =+IF(requisitos!DC2=1,1,"") ->  | CT55: =+IF(requisitos!DD2=1,1,"") ->  | CU55: =+IF(requisitos!DE2=1,1,"") ->  | CV55: =+IF(requisitos!DF2=1,1,"") ->  | CW55: =+IF(requisitos!DG2=1,1,"") ->  | CX55: =+IF(requisitos!DH2=1,1,"") ->  | CY55: =+IF(requisitos!DI2=1,1,"") ->  | CZ55: =+IF(requisitos!DJ2=1,1,"") ->  | DA55: =+IF(requisitos!DK2=1,1,"") ->  | DB55: =+IF(requisitos!DL2=1,1,"") ->  | DC55: =+IF(requisitos!DM2=1,1,"") ->  | DD55: =+IF(requisitos!DN2=1,1,"") ->  | DE55: =+IF(requisitos!DO2=1,1,"") ->  | DF55: =+IF(requisitos!DP2=1,1,"") ->  | DG55: =+IF(requisitos!DQ2=1,1,"") ->  | DH55: =+IF(requisitos!DR2=1,1,"") ->  | DI55: =+IF(requisitos!DS2=1,1,"") ->  | DJ55: =+IF(requisitos!DT2=1,1,"") ->  | DK55: =+IF(requisitos!DU2=1,1,"") ->  | DL55: =+IF(requisitos!DV2=1,1,"") ->  | DM55: =+IF(requisitos!DW2=1,1,"") ->  | DN55: =+IF(requisitos!DX2=1,1,"") ->  | DO55: =+IF(requisitos!DY2=1,1,"") ->  | DP55: =+IF(requisitos!DZ2=1,1,"") ->  | DQ55: =+IF(requisitos!EA2=1,1,"") ->  | DR55: =+IF(requisitos!EB2=1,1,"") ->  | DS55: =+IF(requisitos!EC2=1,1,"") ->  | DT55: =+IF(requisitos!ED2=1,1,"") ->  | DU55: =+IF(requisitos!EE2=1,1,"") ->  | DV55: =+IF(requisitos!EF2=1,1,"") ->  | DW55: =+IF(requisitos!EG2=1,1,"") ->  | DX55: =+IF(requisitos!EH2=1,1,"") ->  | DY55: =+IF(requisitos!EI2=1,1,"") ->  | DZ55: =+IF(requisitos!EJ2=1,1,"") ->  | EA55: =+IF(requisitos!EK2=1,1,"") ->  | EB55: =+IF(requisitos!EL2=1,1,"") ->  | EC55: =+IF(requisitos!EM2=1,1,"") ->  | ED55: =+IF(requisitos!EN2=1,1,"") ->  | EE55: =+IF(requisitos!EO2=1,1,"") ->  | EF55: =+IF(requisitos!EP2=1,1,"") ->  | EG55: =+IF(requisitos!EQ2=1,1,"") ->  | EH55: =+IF(requisitos!ER2=1,1,"") ->  | EI55: =+IF(requisitos!ES2=1,1,"") ->  | EJ55: =+IF(requisitos!ET2=1,1,"") ->  | EK55: =+IF(requisitos!EU2=1,1,"") ->  | EL55: =+IF(requisitos!EV2=1,1,"") ->  | EM55: =+IF(requisitos!EW2=1,1,"") ->  | EN55: =+IF(requisitos!EX2=1,1,"") ->  | EO55: =+IF(requisitos!EY2=1,1,"") ->  | EP55: =+IF(requisitos!EZ2=1,1,"") ->  | EQ55: =+IF(requisitos!FA2=1,1,"") ->  | ER55: =+IF(requisitos!FB2=1,1,"") ->  | ES55: =+IF(requisitos!FC2=1,1,"") ->  | ET55: =+IF(requisitos!FD2=1,1,"") ->  | EU55: =+IF(requisitos!FE2=1,1,"") ->  | EV55: =+IF(requisitos!FF2=1,1,"") ->  | EW55: =+IF(requisitos!FG2=1,1,"") ->  | EX55: =+IF(requisitos!FH2=1,1,"") ->  | EY55: =+IF(requisitos!FI2=1,1,"") ->  | EZ55: =+IF(requisitos!FJ2=1,1,"") ->  | FA55: =+IF(requisitos!FK2=1,1,"") ->  | FB55: =+IF(requisitos!FL2=1,1,"") ->  | FC55: =+IF(requisitos!FM2=1,1,"") ->  | FD55: =+IF(requisitos!FN2=1,1,"") ->  | FE55: =+IF(requisitos!FO2=1,1,"") ->  | FF55: =+IF(requisitos!FP2=1,1,"") ->  | FG55: =+IF(requisitos!FQ2=1,1,"") ->  | FH55: =+IF(requisitos!FR2=1,1,"") ->  | FI55: =+IF(requisitos!FS2=1,1,"") ->  | FJ55: =+IF(requisitos!FT2=1,1,"") ->  | FK55: =+IF(requisitos!FU2=1,1,"") ->  | FL55: =+IF(requisitos!FV2=1,1,"") ->  | FM55: =+IF(requisitos!FW2=1,1,"") ->  | FN55: =+IF(requisitos!FX2=1,1,"") ->  | FO55: =+IF(requisitos!FY2=1,1,"") ->  | FP55: =+IF(requisitos!FZ2=1,1,"") ->  | FQ55: =+IF(requisitos!GA2=1,1,"") ->  | FR55: =+IF(requisitos!GB2=1,1,"") ->  | FS55: =+IF(requisitos!GC2=1,1,"") ->  | FT55: =+IF(requisitos!GD2=1,1,"") ->  | FU55: =+IF(requisitos!GE2=1,1,"") ->  | FV55: =+IF(requisitos!GF2=1,1,"") ->  | FW55: =+IF(requisitos!GG2=1,1,"") ->  | FX55: =+IF(requisitos!GH2=1,1,"") ->  | FY55: =+IF(requisitos!GI2=1,1,"") ->  | FZ55: =+IF(requisitos!GJ2=1,1,"") ->  | GA55: =+IF(requisitos!GK2=1,1,"") ->  | GB55: =+IF(requisitos!GL2=1,1,"") ->  | GC55: =+IF(requisitos!GM2=1,1,"") ->  | GD55: =+IF(requisitos!GN2=1,1,"") ->  | GE55: =+IF(requisitos!GO2=1,1,"") ->  | GF55: =+IF(requisitos!GP2=1,1,"") ->  | GG55: =+IF(requisitos!GQ2=1,1,"") ->  | GH55: =+IF(requisitos!GR2=1,1,"") ->  | GI55: =+IF(requisitos!GS2=1,1,"") ->  | GJ55: =+IF(requisitos!GT2=1,1,"") ->  | GK55: =+IF(requisitos!GU2=1,1,"") ->  | GL55: =+IF(requisitos!GV2=1,1,"") ->  | GM55: =+IF(requisitos!GW2=1,1,"") ->  | GN55: =+IF(requisitos!GX2=1,1,"") ->  | GO55: =+IF(requisitos!GY2=1,1,"") ->  | GP55: =+IF(requisitos!GZ2=1,1,"") ->  | GQ55: =+IF(requisitos!HA2=1,1,"") ->  | GR55: =+IF(requisitos!HB2=1,1,"") ->  | GS55: =+IF(requisitos!HC2=1,1,"") ->  | GT55: =+IF(requisitos!HD2=1,1,"") ->  | GU55: =+IF(requisitos!HE2=1,1,"") ->  | GV55: =+IF(requisitos!HF2=1,1,"") ->  | GW55: =+IF(requisitos!HG2=1,1,"") ->  | GX55: =+IF(requisitos!HH2=1,1,"") ->  | GY55: =+IF(requisitos!HI2=1,1,"") ->  | GZ55: =+IF(requisitos!HJ2=1,1,"") ->  | HA55: =+IF(requisitos!HK2=1,1,"") ->  | HB55: =+IF(requisitos!HL2=1,1,"") ->  | HC55: =+IF(requisitos!HM2=1,1,"") ->  | HD55: =+IF(requisitos!HN2=1,1,"") ->  | HE55: =+IF(requisitos!HO2=1,1,"") ->  | HF55: =+IF(requisitos!HP2=1,1,"") ->  | HG55: =+IF(requisitos!HQ2=1,1,"") ->  | HH55: =+IF(requisitos!HR2=1,1,"") ->  | HI55: =+IF(requisitos!HS2=1,1,"") ->  | HJ55: =+IF(requisitos!HT2=1,1,"") ->  | HK55: =+IF(requisitos!HU2=1,1,"") ->  | HL55: =+IF(requisitos!HV2=1,1,"") ->  | HM55: =+IF(requisitos!HW2=1,1,"") ->  | HN55: =+IF(requisitos!HX2=1,1,"") ->  | HO55: =+IF(requisitos!HY2=1,1,"") ->  | HP55: =+IF(requisitos!HZ2=1,1,"") ->  | HQ55: =+IF(requisitos!IA2=1,1,"") ->  | HR55: =+IF(requisitos!IB2=1,1,"") ->  | HS55: =+IF(requisitos!IC2=1,1,"") ->  | HT55: =+IF(requisitos!ID2=1,1,"") ->  | HU55: =+IF(requisitos!IE2=1,1,"") ->  | HV55: =+IF(requisitos!IF2=1,1,"") ->  | HW55: =+IF(requisitos!IG2=1,1,"") ->  | HX55: =+IF(requisitos!IH2=1,1,"") ->  | HY55: =+IF(requisitos!II2=1,1,"") ->  | HZ55: =+IF(requisitos!IJ2=1,1,"") ->  | IA55: =+IF(requisitos!IK2=1,1,"") ->  | IB55: =+IF(requisitos!IL2=1,1,"") ->  | IC55: =+IF(requisitos!IM2=1,1,"") ->  | ID55: =+IF(requisitos!IN2=1,1,"") ->  | IE55: =+IF(requisitos!IO2=1,1,"") ->  | IF55: =+IF(requisitos!IP2=1,1,"") ->  | IG55: =+IF(requisitos!IQ2=1,1,"") ->  | IH55: =+IF(requisitos!IR2=1,1,"") ->  | II55: =+IF(requisitos!IS2=1,1,"") ->  | IJ55: =+IF(requisitos!IT2=1,1,"") ->  | IK55: =+IF(requisitos!IU2=1,1,"") ->  | IL55: =+IF(requisitos!IV2=1,1,"") ->  | IM55: =+IF(requisitos!#REF!=1,1,"") ->  | IN55: =+IF(requisitos!#REF!=1,1,"") ->  | IO55: =+IF(requisitos!#REF!=1,1,"") ->  | IP55: =+IF(requisitos!#REF!=1,1,"") ->  | IQ55: =+IF(requisitos!#REF!=1,1,"") ->  | IR55: =+IF(requisitos!#REF!=1,1,"") ->  | IS55: =+IF(requisitos!#REF!=1,1,"") ->  | IT55: =+IF(requisitos!#REF!=1,1,"") ->  | IU55: =+IF(requisitos!#REF!=1,1,"") ->  | IV55: =+IF(requisitos!AE2=1,1,"") -> 1
A56: DOMICILIO | U56: =+IF(S56="",1,2) -> 1 | V56: =+IF(T56="",1,2) -> 1 | W56: 2 | X56: 2 | Y56: 2 | Z56: 2 | AA56: 2 | AB56: 2 | AC56: 2 | AD56: 2 | AE56: 2 | AF56: 2 | AG56: 2 | AH56: 2 | AI56: 2 | AJ56: 2 | AK56: 2 | AL56: =+IF(AJ56="",1,2) -> 2 | AM56: 2 | AN56: 2 | AO56: 2 | AP56: 2 | AQ56: 2 | AR56: 2 | AS56: 2 | AT56: 2 | AU56: 2 | AV56: 2 | AW56: 2 | AX56: 2 | AY56: 2 | AZ56: 2 | BA56: 2 | BB56: =+IF(AZ56="",1,2) -> 2 | BC56: 2 | BD56: 2 | BE56: 2 | BF56: 2 | BG56: 2 | BH56: 2 | BI56: 2 | BJ56: 2 | BK56: 2 | BL56: 2 | BM56: 2 | BN56: 2 | BO56: 2 | BP56: 2 | BQ56: 2 | BR56: =+IF(BP56="",1,2) -> 2 | BS56: 2 | BT56: 2 | BU56: 2 | BV56: 2 | BW56: 2 | BX56: 2 | BY56: 2 | BZ56: 2 | CA56: 2 | CB56: 2 | CC56: 2 | CD56: 2 | CE56: 2 | CF56: 2 | CG56: 2 | CH56: =+IF(CF56="",1,2) -> 2 | CI56: 2 | CJ56: 2 | CK56: 2 | CL56: 2 | CM56: 2 | CN56: 2 | CO56: 2 | CP56: 2 | CQ56: 2 | CR56: 2 | CS56: 2 | CT56: 2 | CU56: 2 | CV56: 2 | CW56: 2 | CX56: =+IF(CV56="",1,2) -> 2 | CY56: 2 | CZ56: 2 | DA56: 2 | DB56: 2 | DC56: 2 | DD56: 2 | DE56: 2 | DF56: 2 | DG56: 2 | DH56: 2 | DI56: 2 | DJ56: 2 | DK56: 2 | DL56: 2 | DM56: 2 | DN56: =+IF(DL56="",1,2) -> 2 | DO56: 2 | DP56: 2 | DQ56: 2 | DR56: 2 | DS56: 2 | DT56: 2 | DU56: 2 | DV56: 2 | DW56: 2 | DX56: 2 | DY56: 2 | DZ56: 2 | EA56: 2 | EB56: 2 | EC56: 2 | ED56: =+IF(EB56="",1,2) -> 2 | EE56: 2 | EF56: 2 | EG56: 2 | EH56: 2 | EI56: 2 | EJ56: 2 | EK56: 2 | EL56: 2 | EM56: 2 | EN56: 2 | EO56: 2 | EP56: 2 | EQ56: 2 | ER56: 2 | ES56: 2 | ET56: =+IF(ER56="",1,2) -> 2 | EU56: 2 | EV56: 2 | EW56: 2 | EX56: 2 | EY56: 2 | EZ56: 2 | FA56: 2 | FB56: 2 | FC56: 2 | FD56: 2 | FE56: 2 | FF56: 2 | FG56: 2 | FH56: 2 | FI56: 2 | FJ56: =+IF(FH56="",1,2) -> 2 | FK56: 2 | FL56: 2 | FM56: 2 | FN56: 2 | FO56: 2 | FP56: 2 | FQ56: 2 | FR56: 2 | FS56: 2 | FT56: 2 | FU56: 2 | FV56: 2 | FW56: 2 | FX56: 2 | FY56: 2 | FZ56: =+IF(FX56="",1,2) -> 2 | GA56: 2 | GB56: 2 | GC56: 2 | GD56: 2 | GE56: 2 | GF56: 2 | GG56: 2 | GH56: 2 | GI56: 2 | GJ56: 2 | GK56: 2 | GL56: 2 | GM56: 2 | GN56: 2 | GO56: 2 | GP56: =+IF(GN56="",1,2) -> 2 | GQ56: 2 | GR56: 2 | GS56: 2 | GT56: 2 | GU56: 2 | GV56: 2 | GW56: 2 | GX56: 2 | GY56: 2 | GZ56: 2 | HA56: 2 | HB56: 2 | HC56: 2 | HD56: 2 | HE56: 2 | HF56: =+IF(HD56="",1,2) -> 2 | HG56: 2 | HH56: 2 | HI56: 2 | HJ56: 2 | HK56: 2 | HL56: 2 | HM56: 2 | HN56: 2 | HO56: 2 | HP56: 2 | HQ56: 2 | HR56: 2 | HS56: 2 | HT56: 2 | HU56: 2 | HV56: =+IF(HT56="",1,2) -> 2 | HW56: 2 | HX56: 2 | HY56: 2 | HZ56: 2 | IA56: 2 | IB56: 2 | IC56: 2 | ID56: 2 | IE56: 2 | IF56: 2 | IG56: 2 | IH56: 2 | II56: 2 | IJ56: 2 | IK56: 2 | IL56: =+IF(IJ56="",1,2) -> 2 | IM56: 2 | IN56: 2 | IO56: 2 | IP56: 2 | IQ56: 2 | IR56: 2 | IS56: 2 | IT56: 2 | IU56: 2 | IV56: =+IF(T56="",1,2) -> 1
A57: CALLE | U57: =+IF(S57="",1,2) -> 1 | V57: 1 | W57: 2 | X57: 2 | Y57: 2 | Z57: 2 | AA57: 2 | AB57: 2 | AC57: 2 | AD57: 2 | AE57: 2 | AF57: 2 | AG57: 2 | AH57: 2 | AI57: 2 | AJ57: 2 | AK57: 2 | AL57: 2 | AM57: 2 | AN57: 2 | AO57: 2 | AP57: 2 | AQ57: 2 | AR57: 2 | AS57: 2 | AT57: 2 | AU57: 2 | AV57: 2 | AW57: 2 | AX57: 2 | AY57: 2 | AZ57: 2 | BA57: 2 | BB57: 2 | BC57: 2 | BD57: 2 | BE57: 2 | BF57: 2 | BG57: 2 | BH57: 2 | BI57: 2 | BJ57: 2 | BK57: 2 | BL57: 2 | BM57: 2 | BN57: 2 | BO57: 2 | BP57: 2 | BQ57: 2 | BR57: 2 | BS57: 2 | BT57: 2 | BU57: 2 | BV57: 2 | BW57: 2 | BX57: 2 | BY57: 2 | BZ57: 2 | CA57: 2 | CB57: 2 | CC57: 2 | CD57: 2 | CE57: 2 | CF57: 2 | CG57: 2 | CH57: 2 | CI57: 2 | CJ57: 2 | CK57: 2 | CL57: 2 | CM57: 2 | CN57: 2 | CO57: 2 | CP57: 2 | CQ57: 2 | CR57: 2 | CS57: 2 | CT57: 2 | CU57: 2 | CV57: 2 | CW57: 2 | CX57: 2 | CY57: 2 | CZ57: 2 | DA57: 2 | DB57: 2 | DC57: 2 | DD57: 2 | DE57: 2 | DF57: 2 | DG57: 2 | DH57: 2 | DI57: 2 | DJ57: 2 | DK57: 2 | DL57: 2 | DM57: 2 | DN57: 2 | DO57: 2 | DP57: 2 | DQ57: 2 | DR57: 2 | DS57: 2 | DT57: 2 | DU57: 2 | DV57: 2 | DW57: 2 | DX57: 2 | DY57: 2 | DZ57: 2 | EA57: 2 | EB57: 2 | EC57: 2 | ED57: 2 | EE57: 2 | EF57: 2 | EG57: 2 | EH57: 2 | EI57: 2 | EJ57: 2 | EK57: 2 | EL57: 2 | EM57: 2 | EN57: 2 | EO57: 2 | EP57: 2 | EQ57: 2 | ER57: 2 | ES57: 2 | ET57: 2 | EU57: 2 | EV57: 2 | EW57: 2 | EX57: 2 | EY57: 2 | EZ57: 2 | FA57: 2 | FB57: 2 | FC57: 2 | FD57: 2 | FE57: 2 | FF57: 2 | FG57: 2 | FH57: 2 | FI57: 2 | FJ57: 2 | FK57: 2 | FL57: 2 | FM57: 2 | FN57: 2 | FO57: 2 | FP57: 2 | FQ57: 2 | FR57: 2 | FS57: 2 | FT57: 2 | FU57: 2 | FV57: 2 | FW57: 2 | FX57: 2 | FY57: 2 | FZ57: 2 | GA57: 2 | GB57: 2 | GC57: 2 | GD57: 2 | GE57: 2 | GF57: 2 | GG57: 2 | GH57: 2 | GI57: 2 | GJ57: 2 | GK57: 2 | GL57: 2 | GM57: 2 | GN57: 2 | GO57: 2 | GP57: 2 | GQ57: 2 | GR57: 2 | GS57: 2 | GT57: 2 | GU57: 2 | GV57: 2 | GW57: 2 | GX57: 2 | GY57: 2 | GZ57: 2 | HA57: 2 | HB57: 2 | HC57: 2 | HD57: 2 | HE57: 2 | HF57: 2 | HG57: 2 | HH57: 2 | HI57: 2 | HJ57: 2 | HK57: 2 | HL57: 2 | HM57: 2 | HN57: 2 | HO57: 2 | HP57: 2 | HQ57: 2 | HR57: 2 | HS57: 2 | HT57: 2 | HU57: 2 | HV57: 2 | HW57: 2 | HX57: 2 | HY57: 2 | HZ57: 2 | IA57: 2 | IB57: 2 | IC57: 2 | ID57: 2 | IE57: 2 | IF57: 2 | IG57: 2 | IH57: 2 | II57: 2 | IJ57: 2 | IK57: 2 | IL57: 2 | IM57: 2 | IN57: 2 | IO57: 2 | IP57: 2 | IQ57: 2 | IR57: 2 | IS57: 2 | IT57: 2 | IU57: 2 | IV57: =+IF(T57="",1,2) -> 1
A58: NÚMERO | U58: =+IF(S58="",1,2) -> 1 | V58: 1 | W58: 2 | X58: 2 | Y58: 2 | Z58: 2 | AA58: 2 | AB58: 2 | AC58: 2 | AD58: 2 | AE58: 2 | AF58: 2 | AG58: 2 | AH58: 2 | AI58: 2 | AJ58: 2 | AK58: 2 | AL58: 2 | AM58: 2 | AN58: 2 | AO58: 2 | AP58: 2 | AQ58: 2 | AR58: 2 | AS58: 2 | AT58: 2 | AU58: 2 | AV58: 2 | AW58: 2 | AX58: 2 | AY58: 2 | AZ58: 2 | BA58: 2 | BB58: 2 | BC58: 2 | BD58: 2 | BE58: 2 | BF58: 2 | BG58: 2 | BH58: 2 | BI58: 2 | BJ58: 2 | BK58: 2 | BL58: 2 | BM58: 2 | BN58: 2 | BO58: 2 | BP58: 2 | BQ58: 2 | BR58: 2 | BS58: 2 | BT58: 2 | BU58: 2 | BV58: 2 | BW58: 2 | BX58: 2 | BY58: 2 | BZ58: 2 | CA58: 2 | CB58: 2 | CC58: 2 | CD58: 2 | CE58: 2 | CF58: 2 | CG58: 2 | CH58: 2 | CI58: 2 | CJ58: 2 | CK58: 2 | CL58: 2 | CM58: 2 | CN58: 2 | CO58: 2 | CP58: 2 | CQ58: 2 | CR58: 2 | CS58: 2 | CT58: 2 | CU58: 2 | CV58: 2 | CW58: 2 | CX58: 2 | CY58: 2 | CZ58: 2 | DA58: 2 | DB58: 2 | DC58: 2 | DD58: 2 | DE58: 2 | DF58: 2 | DG58: 2 | DH58: 2 | DI58: 2 | DJ58: 2 | DK58: 2 | DL58: 2 | DM58: 2 | DN58: 2 | DO58: 2 | DP58: 2 | DQ58: 2 | DR58: 2 | DS58: 2 | DT58: 2 | DU58: 2 | DV58: 2 | DW58: 2 | DX58: 2 | DY58: 2 | DZ58: 2 | EA58: 2 | EB58: 2 | EC58: 2 | ED58: 2 | EE58: 2 | EF58: 2 | EG58: 2 | EH58: 2 | EI58: 2 | EJ58: 2 | EK58: 2 | EL58: 2 | EM58: 2 | EN58: 2 | EO58: 2 | EP58: 2 | EQ58: 2 | ER58: 2 | ES58: 2 | ET58: 2 | EU58: 2 | EV58: 2 | EW58: 2 | EX58: 2 | EY58: 2 | EZ58: 2 | FA58: 2 | FB58: 2 | FC58: 2 | FD58: 2 | FE58: 2 | FF58: 2 | FG58: 2 | FH58: 2 | FI58: 2 | FJ58: 2 | FK58: 2 | FL58: 2 | FM58: 2 | FN58: 2 | FO58: 2 | FP58: 2 | FQ58: 2 | FR58: 2 | FS58: 2 | FT58: 2 | FU58: 2 | FV58: 2 | FW58: 2 | FX58: 2 | FY58: 2 | FZ58: 2 | GA58: 2 | GB58: 2 | GC58: 2 | GD58: 2 | GE58: 2 | GF58: 2 | GG58: 2 | GH58: 2 | GI58: 2 | GJ58: 2 | GK58: 2 | GL58: 2 | GM58: 2 | GN58: 2 | GO58: 2 | GP58: 2 | GQ58: 2 | GR58: 2 | GS58: 2 | GT58: 2 | GU58: 2 | GV58: 2 | GW58: 2 | GX58: 2 | GY58: 2 | GZ58: 2 | HA58: 2 | HB58: 2 | HC58: 2 | HD58: 2 | HE58: 2 | HF58: 2 | HG58: 2 | HH58: 2 | HI58: 2 | HJ58: 2 | HK58: 2 | HL58: 2 | HM58: 2 | HN58: 2 | HO58: 2 | HP58: 2 | HQ58: 2 | HR58: 2 | HS58: 2 | HT58: 2 | HU58: 2 | HV58: 2 | HW58: 2 | HX58: 2 | HY58: 2 | HZ58: 2 | IA58: 2 | IB58: 2 | IC58: 2 | ID58: 2 | IE58: 2 | IF58: 2 | IG58: 2 | IH58: 2 | II58: 2 | IJ58: 2 | IK58: 2 | IL58: 2 | IM58: 2 | IN58: 2 | IO58: 2 | IP58: 2 | IQ58: 2 | IR58: 2 | IS58: 2 | IT58: 2 | IU58: 2 | IV58: =+IF(T58="",1,2) -> 1
A59: COLONIA | U59: =+SUM(U55:U58) -> 4 | V59: =+SUM(V55:V58) -> 3 | W59: 6 | X59: 6 | Y59: 6 | Z59: 6 | AA59: 6 | AB59: 6 | AC59: 6 | AD59: 6 | AE59: 6 | AF59: 6 | AG59: 6 | AH59: 6 | AI59: 6 | AJ59: 6 | AK59: 6 | AL59: 6 | AM59: 6 | AN59: 6 | AO59: 6 | AP59: 6 | AQ59: 6 | AR59: 6 | AS59: 6 | AT59: 6 | AU59: 6 | AV59: 6 | AW59: 6 | AX59: 6 | AY59: 6 | AZ59: 6 | BA59: 6 | BB59: 6 | BC59: 6 | BD59: 6 | BE59: 6 | BF59: 6 | BG59: 6 | BH59: 6 | BI59: 6 | BJ59: 6 | BK59: 6 | BL59: 6 | BM59: 6 | BN59: 6 | BO59: 6 | BP59: 6 | BQ59: 6 | BR59: 6 | BS59: 6 | BT59: 6 | BU59: 6 | BV59: 6 | BW59: 6 | BX59: 6 | BY59: 6 | BZ59: 6 | CA59: 6 | CB59: 6 | CC59: 6 | CD59: 6 | CE59: 6 | CF59: 6 | CG59: 6 | CH59: =+SUM(CH55:CH58) -> 6 | CI59: 6 | CJ59: 6 | CK59: 6 | CL59: 6 | CM59: 6 | CN59: 6 | CO59: 6 | CP59: 6 | CQ59: 6 | CR59: 6 | CS59: 6 | CT59: 6 | CU59: 6 | CV59: 6 | CW59: 6 | CX59: 6 | CY59: 6 | CZ59: 6 | DA59: 6 | DB59: 6 | DC59: 6 | DD59: 6 | DE59: 6 | DF59: 6 | DG59: 6 | DH59: 6 | DI59: 6 | DJ59: 6 | DK59: 6 | DL59: 6 | DM59: 6 | DN59: 6 | DO59: 6 | DP59: 6 | DQ59: 6 | DR59: 6 | DS59: 6 | DT59: 6 | DU59: 6 | DV59: 6 | DW59: 6 | DX59: 6 | DY59: 6 | DZ59: 6 | EA59: 6 | EB59: 6 | EC59: 6 | ED59: 6 | EE59: 6 | EF59: 6 | EG59: 6 | EH59: 6 | EI59: 6 | EJ59: 6 | EK59: 6 | EL59: 6 | EM59: 6 | EN59: 6 | EO59: 6 | EP59: 6 | EQ59: 6 | ER59: 6 | ES59: 6 | ET59: =+SUM(ET55:ET58) -> 6 | EU59: 6 | EV59: 6 | EW59: 6 | EX59: 6 | EY59: 6 | EZ59: 6 | FA59: 6 | FB59: 6 | FC59: 6 | FD59: 6 | FE59: 6 | FF59: 6 | FG59: 6 | FH59: 6 | FI59: 6 | FJ59: 6 | FK59: 6 | FL59: 6 | FM59: 6 | FN59: 6 | FO59: 6 | FP59: 6 | FQ59: 6 | FR59: 6 | FS59: 6 | FT59: 6 | FU59: 6 | FV59: 6 | FW59: 6 | FX59: 6 | FY59: 6 | FZ59: 6 | GA59: 6 | GB59: 6 | GC59: 6 | GD59: 6 | GE59: 6 | GF59: 6 | GG59: 6 | GH59: 6 | GI59: 6 | GJ59: 6 | GK59: 6 | GL59: 6 | GM59: 6 | GN59: 6 | GO59: 6 | GP59: 6 | GQ59: 6 | GR59: 6 | GS59: 6 | GT59: 6 | GU59: 6 | GV59: 6 | GW59: 6 | GX59: 6 | GY59: 6 | GZ59: 6 | HA59: 6 | HB59: 6 | HC59: 6 | HD59: 6 | HE59: 6 | HF59: =+SUM(HF55:HF58) -> 6 | HG59: 6 | HH59: 6 | HI59: 6 | HJ59: 6 | HK59: 6 | HL59: 6 | HM59: 6 | HN59: 6 | HO59: 6 | HP59: 6 | HQ59: 6 | HR59: 6 | HS59: 6 | HT59: 6 | HU59: 6 | HV59: 6 | HW59: 6 | HX59: 6 | HY59: 6 | HZ59: 6 | IA59: 6 | IB59: 6 | IC59: 6 | ID59: 6 | IE59: 6 | IF59: 6 | IG59: 6 | IH59: 6 | II59: 6 | IJ59: 6 | IK59: 6 | IL59: 6 | IV59: 4
A60: CIUDAD | U60: =+IF(requisitos!AE2=2,1,IF(requisitos!AE2=3,1,"")) -> 
A61: DELEG. O MUNICIPIO | U61: =+IF(S61="",1,2) -> 1
A62: ENTIDAD FEDERATIVA (ESTADO) | U62: =+IF(S62="",1,2) -> 1
A63: CÓDIGO POSTAL | U63: =+IF(S63="",1,2) -> 1
A64: TELEFONOS | U64: =+SUM(U60:IV63) -> 3
A65: CORREO ELECTRÓNICO
I66: =IF(requisitos!C28=1,"INDICAR REGIMEN DE PROPIEDAD","") -> 
A68: DATOS DE LA UNIDAD DE VALUACIÓN ASIGNADA
A69: NOMBRE (Razón Social). | N69: CIUDAD.
A71: ENTIDAD | G71: TELÉFONOS | N71: EMAIL.
A86: COMENTARIOS ADICIONALES:
A87: NOTAS:
A88: 1.- | B88: PARA ATENDER LA PRESENTE SOLICITUD, ES NECESARIO PROPORCIONAR LOS DATOS ANTES REQUERIDOS, EL NOMBRE Y FIRMA DEL SOLICITANTE.
B89: LA FALTA DE INFORMACIÓN Y/O FIRMA DEL SOLICITANTE SERÁN CAUSA DE SUSPENSIÓN DE SU ATENCIÓN.
A90: 2.- | B90: EN CASO DE GENERARSE GASTOS POR CONCEPTOS DE VIÁTICOS Y TRASLADOS, ESTOS SERÁN CON CARGO AL SOLICITANTE.
B92: =+IF(A15="DATOS DEL EMPLEADO","","USUARIO / BANCO") -> USUARIO / BANCO | H92: FIRMA SOLICITANTE DEL AVALÚO.
H93: EN CASO DE QUE EL MONTO DEL ANTICIPO A QUE SE REFIERE LA PRESENTE SOLICITUD NO SEA SUFICIENTE PARA CUBRIR EL TOTAL DEL PAGO DE LOS HONORARIOS POR LA ELABORACIÓN DEL AVALÚO Y DE QUE EN LA CUENTA DE CHEQUES QUE TENGO ABIERTA EN BANCO SANTANDER SOCIEDAD ANÓNIMA, CUENTE CON LOS FONDOS SUFICIENTES PARA CUBRIR LA DIFERENCIA EXISTENTE, EN ESTE ACTO AUTORIZO A BANCO SANTANDER SOCIEDAD ANÓNIMA PARA CARGAR EN MI CUENTA DE CHEQUES LA DIFERENCIA QUE EXISTA ENTRE EL MONTO DEL ANTICIPO Y LOS HONORARIOS DEL AVALÚO.
H98: =+IF(requisitos!I14=5,'RESTO DE PRODUCTOS'!B120,"") -> 
A106: =+E17 -> 0 | H106: =+G52 -> 0
T107: RIES-046 (052025)
B120: EN ESTE ACTO AUTORIZO A BANCO SANTANDER (MEXICO),SOCIEDAD ANONIMA, INSTITUCION DE BANCA MULTIPLE/SANTANDER HIPOTECARIO, S.A. DE C.V. SOFOM ER. A QUE A TRAVES DE LA EMPRESA QUE DESIGNE SE LLEVE A CABO EL PAGO PARA LA GENERACIÓN DE LA CLAVE UNICA DE VIVIENDA (CUV) NECESARIA PARA MI CREDITO.

Sheet requisitos (hidden)
AE2: 1 | AF2: CASA SOLA
C3: tipo | F3: requisitos | I3: OTROS | O3: PROCEDE O NO | T3: 2 | U3: =VLOOKUP(T3,T4:U5,2,FALSE) ->  | AA3: =+T3+I14 -> 3 | AF3: CASA EN CONDOMINIO
B4: 1 | C4: INMOBILIARIO | F4: CONOCER EL VALOR Y/O RENTA | I4: FOTOGRAFÍAS | O4: =IF('Hipoteca Free'!#REF!=FALSE,"",1) ->  | T4: 3 | U4: EN EL ESTADO EN QUE SE ENCUENTRA | AF4: DEPARTAMENTO
B5: 1+4 | C5: MAQUINARIA Y EQUIPO | F5: AUXILIAR COMPRA O VENTA | I5: CROQUIS DE LOCALIZACION | O5: =IF('Hipoteca Free'!#REF!=FALSE,"",1) ->  | T5: 4 | U5: COMPLETAMENTE TERMINADO | AF5: TERRENO
B6: 4 | C6: AGROPECUARIO | F6: DETERMINAR BASE GRAVABLE | I6: AVALÚO DE OTRO BANCO | O6: =IF('Hipoteca Free'!#REF!=FALSE,"",1) ->  | AF6: =+IF(I13=8,"",IF(I13=9,"","OTRO")) -> OTRO
B7: 2 | C7: OBRAS DE ARTE | F7: DAR EN GARANTIA | I7: NINGUNO | O7: =SUM(O4:O6) ->  | S7: ='Hipoteca Free'!$H$20 -> 0 | W7: =IF(AND($S$7>16000000),$X$31,IF(AND($S$7<=16000000,$S$7>8000000),$X$30,IF(AND($S$7<=8000000,$S$7>4000000),$X$29,IF(AND($S$7<=4000000,$S$7>2000000),$X$28,IF(AND($S$7<=2000000,$S$7>1000000),$X$27,IF(AND($S$7<=1000000,$S$7>500000),$X$25,IF(AND($S$7<=500000,$S$7>320000),$X$24,920))))))) -> 920 | X7: =IF(AND($S$7>16000000),$W$31,IF(AND($S$7<=16000000,$S$7>8000000),$W$30,IF(AND($S$7<=8000000,$S$7>4000000),$W$29,IF(AND($S$7<=4000000,$S$7>2000000),$W$28,IF(AND($S$7<=2000000,$S$7>1000000),$W$27,IF(AND($S$7<=1000000,$S$7>500000),$W$25,IF(AND($S$7<=500000,$S$7>=320000),$W$24,920))))))) -> 920
C8: VEHICULOS TERRESTRES | F8: RECIBIR O DAR EN PAGO | I8: 4 | M8: PLANOS
C9: VEHICULOS AÉREOS | F9: ANALIZAR UN PROYECTO | I9: 1 | M9: NO | N9: SI
C10: VEHICULOS MARÍTIMOS | F10: CRÉDITO HIPOTECARIO | M10: SI | N10: NO | O10: 0 | S10: TABLA DE CALCULO PARA EMPLEADOS (NO BORRAR)
C11: OTROS | F11: OTRO | O11: =2.75/1000 -> 0.00275
C12: =I14 -> 1 | F12: 9 | M12: ADQUISICIÓN // LIQUIDEZ | O12: =+'Hipoteca Free'!$H$20*requisitos!$O$11 -> 0 | P12: =+IF($I$9=1,"500",0) -> 500 | Q12: =+P12+O12 -> 500 | R12: =+IF('Hipoteca Free'!$H$20<=420000,1413+requisitos!P12,IF(Q12<=18000,Q12,18000)) -> 1913
M13: ADQUISICIÓN CON APOYO INFONAVIT | O13: =+'Hipoteca Free'!$H$20*requisitos!$O$11 -> 0 | P13: 500 | Q13: 500 | R13: =+IF('Hipoteca Free'!$H$20<=420000,1413+requisitos!P13,IF(Q13<=18000,Q13,18000)) -> 1913
C14: 1 | D14: 1 | E14: CONDOMINIO | I14: 1 | M14: SUSTITUCIÓN DE HIPOTECA | O14: 2320 | P14: 500 | Q14: 2820 | R14: =+Q14 -> 2820 | S14: =+IF(T3=1,'CALCULO Empleados'!M21,requisitos!R14) -> 2820
D15: 2 | E15: PRIVADO | M15: MEJORA DE CONDICIONES | O15: 3000 | P15: 500 | Q15: 3500 | R15: =+Q15 -> 3500 | S15: =VALUE('Hipoteca Free'!$H$20) -> 0
B16: REQUISITOS | M16: HIPOTECA INTEGRAL | O16: =('Hipoteca Free'!$H$20*requisitos!$O$11)+O10 -> 0 | P16: 500 | Q16: 500 | R16: =+IF('Hipoteca Free'!$H$20<=420000,1413+requisitos!P16+O10,IF(Q16<=18000,Q16,18000)) -> 1913 | S16: Valor | T16: ='Hipoteca Free'!#REF! -> 
B17: salida | C17: 1 | D17: 2 | E17: 3 | F17: 4 | G17: 5 | H17: 6 | I17: 7 | J17: 8 | K17: 9 | L17: 10 | M17: REMODELACIÓN, AMPLIACIÓN O MEJORAS | O17: =+'Hipoteca Free'!$H$20*requisitos!$O$11 -> 0 | P17: 500 | Q17: 500 | R17: =+IF('Hipoteca Free'!$H$20<=420000,1413+requisitos!P17,IF(Q17<=18000,Q17,18000)) -> 1913 | T17: AVALÚOS DE INMUEBLES | AB17: AVALÚOS AGROPECUARIOS
B18: =INDEX(C18:L18,$C$12) -> -BOLETA PREDIAL Y AGUA | C18: -BOLETA PREDIAL Y AGUA | D18: -BOLETA PREDIAL Y AGUA | E18: -BOLETA PREDIAL Y AGUA | F18: -BOLETA PREDIAL Y AGUA | G18: -BOLETA PREDIAL Y AGUA | H18: -BOLETA PREDIAL Y AGUA | I18: -BOLETA PREDIAL Y AGUA | J18: -BOLETA PREDIAL Y AGUA | K18: -BOLETA PREDIAL Y AGUA | L18: -BOLETA PREDIAL Y AGUA | M18: TERMINACION DE OBRA | O18: =+'Hipoteca Free'!$H$20*requisitos!$O$11 -> 0 | P18: 500 | Q18: 500 | R18: =+IF('Hipoteca Free'!$H$20<=420000,1413+requisitos!P18,IF(Q18<=18000,Q18,18000)) -> 1913 | T18: Base: | U18: Sobre el valor real del bien valuado. | AB18: Base: | AC18: Sobre el valor real del bien valuado.
B19: =INDEX(C19:L19,$C$12) -> -ESCRITURA ó TITULO DE PROPIEDAD | C19: -ESCRITURA ó TITULO DE PROPIEDAD | D19: -ESCRITURA ó TITULO DE PROPIEDAD | E19: -ESCRITURA ó TITULO DE PROPIEDAD | F19: -ESCRITURA ó TITULO DE PROPIEDAD | G19: -ESCRITURA ó TITULO DE PROPIEDAD | H19: -ESCRITURA ó TITULO DE PROPIEDAD | I19: -ESCRITURA ó TITULO DE PROPIEDAD | J19: -ESCRITURA ó TITULO DE PROPIEDAD | K19: -ESCRITURA ó TITULO DE PROPIEDAD | L19: -ESCRITURA ó TITULO DE PROPIEDAD | M19: ADQUISICION COFINAVIT | O19: =+'Hipoteca Free'!$H$20*requisitos!$O$11 -> 0 | P19: 500 | Q19: 500 | R19: =+IF('Hipoteca Free'!$H$20<=420000,1413+requisitos!P19,IF(Q19<=18000,Q19,18000)) -> 1913 | T19: Cuota mínima: | U19: 800 | V19: más I.V.A. | W19: 0.0025 | AB19: Cuota mínima: | AC19: 1000 | AD19: más I.V.A. | AE19: 0.0035
B20: =INDEX(C20:L20,$C$12) -> -PLANOS ARQUITECTÓNICOS | C20: -PLANOS ARQUITECTÓNICOS | D20: -PLANOS ARQUITECTÓNICOS | E20: -PLANOS ARQUITECTÓNICOS | F20: -PLANOS ARQUITECTÓNICOS | G20: -PLANOS ARQUITECTÓNICOS | H20: -PLANOS ARQUITECTÓNICOS | I20: -PLANOS ARQUITECTÓNICOS | J20: -PLANOS ARQUITECTÓNICOS | K20: -PLANOS ARQUITECTÓNICOS | L20: -PLANOS ARQUITECTÓNICOS | M20: CREDITO DE CONSTRUCCION | O20: =+'Hipoteca Free'!$H$20*requisitos!$O$11 -> 0 | Q20: 0 | R20: =+IF('Hipoteca Free'!$H$20<=420000,1413+requisitos!P20,IF(Q20<=18000,Q20,18000)) -> 1413 | S20: Rango | T20: Límite | V20: Cuota | W20: Tasa | AA20: Rango | AB20: Límite | AD20: Cuota | AE20: Tasa
B21: -COMPROBANTE PAGO ANTICIPO | C21: -COMPROBANTE PAGO ANTICIPO | D21: -COMPROBANTE PAGO ANTICIPO | E21: -COMPROBANTE PAGO ANTICIPO | F21: -COMPROBANTE PAGO ANTICIPO | G21: -COMPROBANTE PAGO ANTICIPO | H21: -COMPROBANTE PAGO ANTICIPO | I21: -COMPROBANTE PAGO ANTICIPO | J21: -COMPROBANTE PAGO ANTICIPO | K21: -COMPROBANTE PAGO ANTICIPO | L21: -COMPROBANTE PAGO ANTICIPO | M21: CRED. CONSTR. Y ADQ. TERRENO | O21: =+'Hipoteca Free'!$H$20*requisitos!$O$11 -> 0 | Q21: 0 | R21: =+IF('Hipoteca Free'!$H$20<=420000,1413+requisitos!P21,IF(Q21<=18000,Q21,18000)) -> 1413 | S21: de valor | T21: Inferior | U21: Superior | V21: fija | W21: marginal * | AA21: de valor | AB21: Superior | AC21: Inferior | AD21: fija | AE21: marginal *
B22: -REGIMEN DE CONDOMINIO o PROYECTO DE REGIMEN | C22: =IF($C$14=1,"-REGIMEN DE CONDOMINIO o PROYECTO DE REGIMEN","") -> -REGIMEN DE CONDOMINIO o PROYECTO DE REGIMEN | D22: =IF($C$14=1,"-REGIMEN DE CONDOMINIO o PROYECTO DE REGIMEN","") -> -REGIMEN DE CONDOMINIO o PROYECTO DE REGIMEN | E22: =IF($C$14=1,"-REGIMEN DE CONDOMINIO o PROYECTO DE REGIMEN","") -> -REGIMEN DE CONDOMINIO o PROYECTO DE REGIMEN | F22: =IF($C$14=1,"-REGIMEN DE CONDOMINIO o PROYECTO DE REGIMEN","") -> -REGIMEN DE CONDOMINIO o PROYECTO DE REGIMEN | G22: -PRESUPUESTO DESGLOSADO Y PROGRAMA DE OBRA | H22: -PRESUPUESTO DESGLOSADO Y PROGRAMA DE OBRA | I22: =IF($C$14=1,"-REGIMEN DE CONDOMINIO o PROYECTO DE REGIMEN","") -> -REGIMEN DE CONDOMINIO o PROYECTO DE REGIMEN | J22: =IF($C$14=1,"-REGIMEN DE CONDOMINIO o PROYECTO DE REGIMEN","") -> -REGIMEN DE CONDOMINIO o PROYECTO DE REGIMEN | K22: =IF($C$14=1,"-REGIMEN DE CONDOMINIO o PROYECTO DE REGIMEN","") -> -REGIMEN DE CONDOMINIO o PROYECTO DE REGIMEN | L22: =IF($C$14=1,"-REGIMEN DE CONDOMINIO o PROYECTO DE REGIMEN","") -> -REGIMEN DE CONDOMINIO o PROYECTO DE REGIMEN | M22: ADQ. TERRENO | O22: =+'Hipoteca Free'!$H$20*requisitos!$O$11 -> 0 | Q22: =+P22+O22 -> 0 | R22: =+Q22 -> 0 | X22: NO BORRAR
B23: Nota: En la escritura deberán señalarse superficies, medidas | C23: =IF($C$14=1,"Nota: En la escritura deberán señalarse superficies, medidas","") -> Nota: En la escritura deberán señalarse superficies, medidas | D23: =IF($C$14=1,"Nota: En la escritura deberán señalarse superficies, medidas","") -> Nota: En la escritura deberán señalarse superficies, medidas | E23: =IF($C$14=1,"Nota: En la escritura deberán señalarse superficies, medidas","") -> Nota: En la escritura deberán señalarse superficies, medidas | F23: =IF($C$14=1,"Nota: En la escritura deberán señalarse superficies, medidas","") -> Nota: En la escritura deberán señalarse superficies, medidas | G23: -LICENCIA DE CONSTRUCCIÓN | H23: -LICENCIA DE CONSTRUCCIÓN | I23: =IF($C$14=1,"Nota: En la escritura deberán señalarse superficies, medidas","") -> Nota: En la escritura deberán señalarse superficies, medidas | J23: =IF($C$14=1,"Nota: En la escritura deberán señalarse superficies, medidas","") -> Nota: En la escritura deberán señalarse superficies, medidas | K23: =IF($C$14=1,"Nota: En la escritura deberán señalarse superficies, medidas","") -> Nota: En la escritura deberán señalarse superficies, medidas | L23: =IF($C$14=1,"Nota: En la escritura deberán señalarse superficies, medidas","") -> Nota: En la escritura deberán señalarse superficies, medidas | Q23: =(('Hipoteca Free'!#REF!)*W23)+V23 ->  | T23: 1 | U23: 320000 | V23: 800 | W23: 0 | X23: =((($S$7-T23)*W23)+V23)*1.15 -> 920 | Z23: =(('Hipoteca Free'!#REF!)*AE23)+AD23 ->  | AB23: 1 | AC23: 286000 | AD23: 1000 | AE23: 0
B24: y colindancias del terreno, de areas privativas e indiviso. | C24: =IF($C$14=1,"y colindancias del terreno, de areas privativas e indiviso.","") -> y colindancias del terreno, de areas privativas e indiviso. | D24: =IF($C$14=1,"y colindancias del terreno, de areas privativas e indiviso.","") -> y colindancias del terreno, de areas privativas e indiviso. | E24: =IF($C$14=1,"y colindancias del terreno, de areas privativas e indiviso.","") -> y colindancias del terreno, de areas privativas e indiviso. | F24: =IF($C$14=1,"y colindancias del terreno, de areas privativas e indiviso.","") -> y colindancias del terreno, de areas privativas e indiviso. | G24: =IF($C$14=1,"-REGIMEN DE CONDOMINIO o PROYECTO DE REGIMEN","") -> -REGIMEN DE CONDOMINIO o PROYECTO DE REGIMEN | H24: =IF($C$14=1,"-REGIMEN DE CONDOMINIO o PROYECTO DE REGIMEN","") -> -REGIMEN DE CONDOMINIO o PROYECTO DE REGIMEN | I24: =IF($C$14=1,"y colindancias del terreno, de areas privativas e indiviso.","") -> y colindancias del terreno, de areas privativas e indiviso. | J24: =IF($C$14=1,"y colindancias del terreno, de areas privativas e indiviso.","") -> y colindancias del terreno, de areas privativas e indiviso. | K24: =IF($C$14=1,"y colindancias del terreno, de areas privativas e indiviso.","") -> y colindancias del terreno, de areas privativas e indiviso. | L24: =IF($C$14=1,"y colindancias del terreno, de areas privativas e indiviso.","") -> y colindancias del terreno, de areas privativas e indiviso. | Q24: =T16*W24 ->  | S24: A | T24: 320001 | U24: 500000 | V24: 800 | W24: 0.0025 | X24: =((($S$7-T24)*W24)+V24)*1.15 -> -0.002875 | Z24: =T16*AE24 ->  | AA24: A | AB24: 286001 | AC24: 500000 | AD24: 0 | AE24: 0.0035
B25: 0 | G25: =IF($C$14=1," (Señalando superficies, medidas, colindancias e indiviso)","") -> (Señalando superficies, medidas, colindancias e indiviso) | H25: =IF($C$14=1," (Señalando superficies, medidas, colindancias e indiviso)","") -> (Señalando superficies, medidas, colindancias e indiviso) | Q25: =(('Hipoteca Free'!#REF!-requisitos!T25)*W25)+V25 ->  | S25: B | T25: 500001 | U25: 1000000 | V25: 1250 | W25: 0.00238 | X25: 68.997263 | Z25: =(('Hipoteca Free'!#REF!-requisitos!AB25)*AE25)+AD25 ->  | AA25: B | AB25: 500001 | AC25: 1000000 | AD25: 1750 | AE25: 0.0031
B26: 0
B27: TARIFA | G27: REGIMEN DE CONDOMINIO o PROYECTO DE REGIMEN | H27: (incluyendo cortes y fachadas) | I27: ESTADO DE CUENTA DEL VENDEDOR | J27: ULTIMO TALON DE PAGO DEL (LOS) ACREDITADO (S) | Q27: =(('Hipoteca Free'!#REF!-requisitos!T27)*W27)+V27 ->  | S27: C | T27: 1000001 | U27: 2000000 | V27: 2440 | W27: 0.00218 | X27: 298.997493 | Z27: =(('Hipoteca Free'!#REF!-requisitos!AB27)*AE27)+AD27 ->  | AA27: C | AB27: 1000001 | AC27: 2000000 | AD27: 3300 | AE27: 0.0029
A28: CRED. HIP. | B28: salida | G28: (Señalando superficies, medidas, colindancias e indiviso) | H28: PRESUPUESTO DESGLOSADO POR PARTIDA Y CALENDARIO DE OBRA | I28: CLAVE UNICA DE VIVIENDA (en caso de vivienda nueva) | Q28: =(('Hipoteca Free'!#REF!-requisitos!T28)*W28)+V28 ->  | S28: D | T28: 2000001 | U28: 4000000 | V28: 4620 | W28: 0.00189 | X28: 965.9978265 | Z28: =(('Hipoteca Free'!#REF!-requisitos!AB28)*AE28)+AD28 ->  | AA28: D | AB28: 2000001 | AC28: 4000000 | AD28: 6200 | AE28: 0.0022
A29: =(A40/$T$16)*1000 ->  | B29: =INDEX(C29:M29,$C$12) ->  | C29: =(C40/$T$16)*1000 ->  | D29: =(D40/$T$16)*1000 ->  | E29: =(E40/$T$16)*1000 ->  | F29: 0.01 | G29: 500 | H29: 2000 | I29: 2000 | M29: DEPENDIENDO DEL | Q29: =(('Hipoteca Free'!#REF!-requisitos!T29)*W29)+V29 ->  | S29: E | T29: 4000001 | U29: 8000000 | V29: 8400 | W29: 0.00158 | X29: 2391.998183 | Z29: =(('Hipoteca Free'!#REF!-requisitos!AB29)*AE29)+AD29 ->  | AA29: E | AB29: 4000001 | AC29: 8000000 | AD29: 10600 | AE29: 0.00135
A30: AL MILLAR | B30: =INDEX(C30:M30,$C$12) -> al millar | C30: al millar | D30: al millar | E30: al millar | F30: del valor | G30: por unidad | H30: por unidad | I30: por unidad | M30: OBJETO A VALUAR | Q30: =(('Hipoteca Free'!#REF!-requisitos!T30)*W30)+V30 ->  | S30: F | T30: 8000001 | U30: 16000000 | V30: 14720 | W30: 0.00128 | X30: 5151.998528 | Z30: =(('Hipoteca Free'!#REF!-requisitos!AB30)*AE30)+AD30 ->  | AA30: F | AB30: 8000001 | AC30: 16000000 | AD30: 16000 | AE30: 0.0011
B31: =INDEX(C31:M31,$C$12) ->  | C31: =IF('Hipoteca Free'!#REF!<=240000,2.5,requisitos!C29) ->  | D31: =IF('Hipoteca Free'!#REF!<=250000,5,requisitos!D29) ->  | E31: =IF('Hipoteca Free'!#REF!<=250000,3.5,requisitos!E29) ->  | F31: =F29 -> 0.01 | G31: =G29 -> 500 | H31: =H29 -> 2000 | I31: =I29 -> 2000 | M31: =M29 -> DEPENDIENDO DEL | Q31: =(('Hipoteca Free'!#REF!-requisitos!T31)*W31)+V31 ->  | S31: G | T31: 16000001 | U31: en adelante | V31: 24960 | W31: 0.00102 | X31: =((($S$7-T31)*W31)+V31)*1.15 -> 9935.998827 | Z31: =(('Hipoteca Free'!#REF!-requisitos!AB31)*AE31)+AD31 ->  | AA31: G** | AB31: 16000001 | AC31: en adelante | AD31: 24800 | AE31: 0.00105
O32: =Q32*0.6 -> 480 | Q32: =IF(ISERROR(S32),U19,MAX(INDEX(Q23:Q31,S32),U19)) -> 800 | S32: =MATCH($T$16,T23:T31,1) ->  | W32: =IF(ISERROR(S32),W19,MIN(INDEX(W23:W31,S32),W19)) -> 0.0025 | Z32: =IF(ISERROR(AA32),0,MAX(INDEX(Z23:Z31,AA32),AC19)) -> 0 | AA32: =MATCH($T$16,AB23:AB31,1) ->  | AE32: =IF(ISERROR(AA32),AE19,MIN(INDEX(AE23:AE31,AA32),AE19)) -> 0.0035
B33: DIAS HABILES | S33: AVALÚOS PARA CRÉDITO HIPOTECARIO (EXCEPTO DE LIQUIDEZ) | AA33: AVALÚOS DE MAQUINARIA Y EQUIPO
B34: =INDEX(C34:M34,$C$12) -> 12 DIAS HABILES | C34: 12 DIAS HABILES | D34: 20 DIAS HABILES | E34: 15 DIAS HABILES | F34: 10 DIAS HABILES | G34: 10 DIAS HABILES | H34: 15 DIAS HABILES | I34: 15 DIAS HABILES | T34: Base: | U34: Sobre el valor real del bien valuado. | AB34: Base: | AC34: Sobre el valor real del bien valuado.
B35: =INDEX(C35:M35,$C$12) -> 0 | T35: Cuota mínima: | U35: =800*1.15 -> 920 | V35: no causa I.V.A. | W35: 0.00287 | AB35: Cuota mínima: | AC35: 800 | AD35: más I.V.A. | AE35: 0.005
B36: pago minimo | S36: Rango | T36: Límite | V36: Cuota | W36: Tasa | AA36: Rango | AB36: Límite | AD36: Cuota | AE36: Tasa
B37: =INDEX(C37:M37,$C$12) ->  | C37: =IF(C40<=300,"pago minimo","") ->  | D37: =IF(D40<=500,"pago minimo","") -> pago minimo | E37: =IF(E40<=500,"pago minimo","") -> pago minimo | G37: =IF(G40<=500,"pago minimo","") -> pago minimo | S37: de valor | T37: Superior | U37: Inferior | V37: fija | W37: marginal * | AA37: de valor | AB37: Superior | AC37: Inferior | AD37: fija | AE37: marginal *
B38: ANTICIPO | Q38: =(('Hipoteca Free'!#REF!)*W38)+V38 ->  | T38: 1 | U38: 320000 | V38: 920 | W38: 0 | Z38: =(('Hipoteca Free'!#REF!)*AE38)+AD38 ->  | AB38: 1 | AC38: 160000 | AD38: 800 | AE38: 0
A39: CRED. HIP. | B39: 1 | Q39: =T16*W39 ->  | S39: A | T39: 320001 | U39: 500000 | V39: 0 | W39: 0.00287 | Z39: =T16*AE39 ->  | AA39: A | AB39: 160001 | AC39: 500000 | AD39: 0 | AE39: 0.005
A40: =Q46 -> 920 | B40: =INDEX(C40:M40,$C$12) -> 800 | C40: =Q32 -> 800 | D40: =Z46 -> 0 | E40: =Z32 -> 0 | F40: ='Hipoteca Free'!#REF!*requisitos!F29 ->  | G40: =G29 -> 500 | H40: =H29 -> 2000 | I40: =I29 -> 2000 | Q40: =(('Hipoteca Free'!#REF!-requisitos!T40)*W40)+V40 ->  | S40: B | T40: 500001 | U40: 1000000 | V40: 1437 | W40: 0.00274 | Z40: =(('Hipoteca Free'!#REF!-requisitos!AB40)*AE40)+AD40 ->  | AA40: B | AB40: 500001 | AC40: 1000000 | AD40: 2500 | AE40: 0.004
A41: =A40*$B$39 -> 920 | B41: =INDEX(C41:M41,$C$12) -> 800 | C41: =C40*$B$39 -> 800 | D41: 0 | E41: 0 | G41: 500 | H41: 2000 | I41: 2000 | M41: 0 | Q41: =(('Hipoteca Free'!#REF!-requisitos!T41)*W41)+V41 ->  | S41: C | T41: 1000001 | U41: 2000000 | V41: 2806 | W41: 0.00251 | Z41: =(('Hipoteca Free'!#REF!-requisitos!AB41)*AE41)+AD41 ->  | AA41: C | AB41: 1000001 | AC41: 2000000 | AD41: 4500 | AE41: 0.0035
Q42: =(('Hipoteca Free'!#REF!-requisitos!T42)*W42)+V42 ->  | S42: D | T42: 2000001 | U42: 4000000 | V42: 5313 | W42: 0.00217 | Z42: =(('Hipoteca Free'!#REF!-requisitos!AB42)*AE42)+AD42 ->  | AA42: D | AB42: 2000001 | AC42: 4000000 | AD42: 8000 | AE42: 0.002
A43: comprobacion | B43: =IF(F12=7,A41,B41) -> 800 | Q43: =(('Hipoteca Free'!#REF!-requisitos!T43)*W43)+V43 ->  | S43: E | T43: 4000001 | U43: 8000000 | V43: 9660 | W43: 0.00182 | Z43: =(('Hipoteca Free'!#REF!-requisitos!AB43)*AE43)+AD43 ->  | AA43: E | AB43: 4000001 | AC43: 8000000 | AD43: 12000 | AE43: 0.0016
A44: verificado | B44: =IF(B43<=300,300,B43) -> 800 | Q44: =(('Hipoteca Free'!#REF!-requisitos!T44)*W44)+V44 ->  | S44: F | T44: 8000001 | U44: 16000000 | V44: 16928 | W44: 0.00147 | Z44: =(('Hipoteca Free'!#REF!-requisitos!AB44)*AE44)+AD44 ->  | AA44: F | AB44: 8000001 | AC44: 16000000 | AD44: 18400 | AE44: 0.0013
N45: NO LO | P45: MONTO | Q45: =(('Hipoteca Free'!#REF!-requisitos!T45)*W45)+V45 ->  | S45: G** | T45: 16000001 | U45: en adelante | V45: 28704 | W45: 0.00117 | Z45: =(('Hipoteca Free'!#REF!-requisitos!AB45)*AE45)+AD45 ->  | AA45: G** | AB45: 16000001 | AC45: en adelante | AD45: 28800 | AE45: 0.0012
N46: OCUPO | Q46: =IF(ISERROR(S46),U35,MAX(INDEX(Q39:Q45,S46),U35)) -> 920 | S46: =MATCH($T$16,T39:T45,1) ->  | W46: =IF(ISERROR(S46),W35,MIN(INDEX(W39:W45,S46),W35)) -> 0.00287 | Z46: =IF(ISERROR(AA46),0,MAX(INDEX(Z39:Z45,AA46),AC35)) -> 0 | AA46: =MATCH($T$16,AB39:AB45,1) ->  | AE46: =IF(ISERROR(AA46),AE35,MIN(INDEX(AE39:AE45,AA46),AE35)) -> 0.005
N47: ¡ZAZ! | P47: TARIFA | Q47: APLICABLE | S47: =IF(T47=1,Q32,IF(T47=2,Z32,IF(T47=3,Q46,Z46))) -> 800 | T47: =C12 -> 1
Q49: APLICABLE | S49: =IF(T47=1,W32,IF(T47=2,AE32,IF(T47=3,W46,AE46))) -> 0.0025
B52: tipo | C52: tipo
B53: RESIDENCIA TIPO ALTO | C53: AUTOMOVIL
B54: CASA SOLA TIPO MEDIO | C54: AUTOBUS
B55: DEPARTAMENTO | C55: CAMION
B56: CASA EN CONDOMINIO | C56: TRAILER
B57: VIVIENDA DE INTERES SOCIAL | C57: TRAXCAVO
B58: VIVIENDA POPULAR | C58: BULLDOZER
B59: HOTEL | C59: HELICOPTERO
B60: CENTRO COMERCIAL | C60: AVION
B61: LOCAL COMERCIAL | C61: AVIONETA
B62: VIVIENDA CON COMERCIO | C62: AEROPLANO
B63: OFICINAS | C63: VELETA
B64: VIVIENDA CON OFICINAS | C64: BARCO
B65: BODEGA | C65: LANCHA
B66: NAVE INDUSTRIAL | C66: TRANVIA
B67: TERRENO BALDIO | C67: FERROCARRIL
B68: TERRENO EJIDAL | C68: TREN
B69: TERRENO INDUSTRIAL | C69: OTRO
B70: TERRENO AGROPECUARIO | C70: 1
B71: GASOLINERIA
B72: CEMENTERIO
B73: IGLESIA
B74: OTRO
B75: 1

Sheet CALCULO Empleados (hidden)
B2: ARANCEL PARA PAGO A UNIDADES DE VALUACIÓN Y COBRO A EMPLEADOS
B4: AVALUOS DE INMUEBLES
C5: Base: | D5: Sobre el valor real del bien valuado
C6: Cuota Mínima | D6: $ 1413.00 (IVA Incluído)
M8: MAS CUOTA FIJA
B9: RANGO DE | C9: LIMITE | E9: CUOTA | F9: TASA | I9: VALOR COMERCIAL | J9: LIMITE | L9: DIF. * TASA | M9: (VALOR DEL AVALUO)
B10: LIMITE INFERIOR | C10: LIMITE SUPERIOR | D10: FIJA | E10: MARGINAL | H10: VALOR COMERCIAL | I10: INFERIOR | J10: DIFERENCIA | K10: MARGINAL | L10: más CUOTA FIJA | M10: IVA | N10: TOTAL
B11: 1 | C11: 320000 | D11: 1217.39 | E11: 0 | F11: 0 | H11: 219000 | I11: 1 | J11: =H11-I11 -> 218999 | K11: =J11*E11 -> 0 | L11: =D11 -> 1217.39 | M11: =L11*0.16 -> 194.7824 | N11: =L11+M11 -> 1412.1724
B12: 320001 | C12: 500000 | D12: 1218 | F12: 0 | H12: =$M$20 -> 0 | I12: =1 -> 1 | J12: -1 | K12: 0 | L12: =D12 -> 1218 | M12: =L12*0.16 -> 194.88 | N12: =(L12+M12) -> 1412.88
B13: 500001 | C13: 1000000 | D13: 1250 | E13: 0.00238 | F13: 2.38 | H13: =$M$20 -> 0 | I13: =B13 -> 500001 | J13: -500001 | K13: =J13*E13 -> -1190.00238 | L13: =(K13+D13)*0.9 -> 53.997858 | M13: =L13*0.16 -> 8.63965728 | N13: =L13+M13 -> 62.63751528
B14: 1000001 | C14: 2000000 | D14: 2440 | E14: 0.00218 | F14: 2.18 | H14: 0 | I14: 1000001 | J14: -1000001 | K14: -2180.00218 | L14: 233.998038 | M14: 37.43968608 | N14: 271.4377241
B15: 2000001 | C15: 4000000 | D15: 4620 | E15: 0.00189 | F15: 1.89 | H15: 0 | I15: 2000001 | J15: -2000001 | K15: -3780.00189 | L15: 755.998299 | M15: =L15*0.16 -> 120.9597278 | N15: 876.9580268
B16: 4000001 | C16: 8000000 | D16: 8400 | E16: 0.00158 | F16: 1.58 | H16: 0 | I16: 4000001 | J16: -4000001 | K16: -6320.00158 | L16: 1871.998578 | M16: 299.5197725 | N16: 2171.51835
B17: 8000001 | C17: 16000000 | D17: 14720 | E17: 0.00128 | F17: 1.28 | H17: 0 | I17: 8000001 | J17: -8000001 | K17: -10240.00128 | L17: 4031.998848 | M17: 645.1198157 | N17: 4677.118664
B18: 16000001 | C18: 900000000 | D18: 24960 | E18: 0.00102 | F18: 1.02 | H18: 0 | I18: 16000001 | J18: -16000001 | K18: -16320.00102 | L18: 7775.999082 | M18: 1244.159853 | N18: 9020.158935
B20: Para poder determinar el costo total del avalúo se tiene que realizar el siguiente proceso: | L20: Valor concluido | M20: =+'Hipoteca Free'!H20 -> 0
L21: Total a pagar C/IVA | M21: =IF(AND(M20>=B12,M20<=C12),N12,IF(AND(M20>=B13,M20<=C13),N13,IF(AND(M20>=B14,M20<=C14),N14,IF(AND(M20>=B15,M20<=C15),N15,IF(AND(M20>=B16,M20<=C16),N16,IF(AND(M20>=B17,M20<=C17),N17,IF(AND(M20>=B18,M20<=C18),N18))))))) -> FALSE
B22: 1.- Al valor comercial del avalúo le restamos el valor inferior ya establecido en esta tabla,
B23: 2.- Como resultado tendremos una diferencia la cual multiplicamos por la cuota marginal ya establecida,
B24: 3.- A dicho resultado se le sumará la cuota fija ya establecida, la cual nos arrojará el importe del avalúo, a eso restarle 10% de descuento | L24: Inferior | M24: =VLOOKUP(M20,$B$10:$N$18,MATCH("Inferior",$B$10:$N$10,0),TRUE) -> 
B25: 4.- Por último se agrega el I.V.A. y da como resultado el total de honorarios a pagar. | L25: Difetencia | M25: =M20-M24 -> 
L26: Marginal | M26: =VLOOKUP(M20,$B$10:$N$18,MATCH("marginal",$B$10:$N$10,0),TRUE)*M25 -> 
L27: Mas Cuota Fija | M27: =((VLOOKUP(M20,$B$10:$N$18,MATCH("Fija",$B$10:$N$10,0),TRUE)+M26)*0.9)*1.16 -> 
AC628: tarifa actual/ construcción.

Sheet Análisis Costos (hidden)
E1: 2.75 | G1: 2.75 | I1: 2.75
D2: Empleados | E2: Mercado Abierto | G2: Mercado Abierto - 10% Desc | I2: Mercado Abierto - 20% Desc
C3: Valor Inmueble | D3: Costo | E3: Costo | F3: Dif vs Empleado | G3: Costo | H3: Dif vs Empleado | I3: Costo | J3: Dif vs Empleado
C4: 1000000 | D4: =IF(C4<=500000,(((VLOOKUP(C4,'CALCULO Empleados'!$B$10:$N$18,MATCH("fija",'CALCULO Empleados'!$B$10:$N$10,0),TRUE)+VLOOKUP(C4,'CALCULO Empleados'!$B$10:$N$18,MATCH("marginal",'CALCULO Empleados'!$B$10:$N$10,0),TRUE)*(C4-VLOOKUP(C4,'CALCULO Empleados'!$B$10:$N$18,MATCH("Inferior",'CALCULO Empleados'!$B$10:$N$10,0),TRUE))))*1.16),(((VLOOKUP(C4,'CALCULO Empleados'!$B$10:$N$18,MATCH("fija",'CALCULO Empleados'!$B$10:$N$10,0),TRUE)+VLOOKUP(C4,'CALCULO Empleados'!$B$10:$N$18,MATCH("marginal",'CALCULO Empleados'!$B$10:$N$10,0),TRUE)*(C4-VLOOKUP(C4,'CALCULO Empleados'!$B$10:$N$18,MATCH("Inferior",'CALCULO Empleados'!$B$10:$N$10,0),TRUE)))*0.9)*1.16)) -> 2547.357515 | E4: =IF((($C4*E$1)/1000)<=1413,1413,(IF((($C4*E$1)/1000)>18000,18000,(($C4*E$1)/1000)))) -> 2750 | F4: =E4-$D4 -> 202.6424847 | G4: =(IF((($C4*G$1)/1000)<=1413,1413,(IF((($C4*G$1)/1000)>18000,18000,(($C4*G$1)/1000)))))*0.9 -> 2475 | H4: =G4-$D4 -> -72.35751528 | I4: =(IF((($C4*I$1)/1000)<=1413,1413,(IF((($C4*I$1)/1000)>18000,18000,(($C4*I$1)/1000)))))*0.8 -> 2200 | J4: =I4-$D4 -> -347.3575153
C5: =C4+1000000 -> 2000000 | D5: =IF(C5<=500000,(((VLOOKUP(C5,'CALCULO Empleados'!$B$10:$N$18,MATCH("fija",'CALCULO Empleados'!$B$10:$N$10,0),TRUE)+VLOOKUP(C5,'CALCULO Empleados'!$B$10:$N$18,MATCH("marginal",'CALCULO Empleados'!$B$10:$N$10,0),TRUE)*(C5-VLOOKUP(C5,'CALCULO Empleados'!$B$10:$N$18,MATCH("Inferior",'CALCULO Empleados'!$B$10:$N$10,0),TRUE))))*1.16),(((VLOOKUP(C5,'CALCULO Empleados'!$B$10:$N$18,MATCH("fija",'CALCULO Empleados'!$B$10:$N$10,0),TRUE)+VLOOKUP(C5,'CALCULO Empleados'!$B$10:$N$18,MATCH("marginal",'CALCULO Empleados'!$B$10:$N$10,0),TRUE)*(C5-VLOOKUP(C5,'CALCULO Empleados'!$B$10:$N$18,MATCH("Inferior",'CALCULO Empleados'!$B$10:$N$10,0),TRUE)))*0.9)*1.16)) -> 4823.277724 | E5: =IF((($C5*E$1)/1000)<=1413,1413,(IF((($C5*E$1)/1000)>18000,18000,(($C5*E$1)/1000)))) -> 5500 | F5: =E5-$D5 -> 676.7222759 | G5: =(IF((($C5*G$1)/1000)<=1413,1413,(IF((($C5*G$1)/1000)>18000,18000,(($C5*G$1)/1000)))))*0.9 -> 4950 | H5: 126.7222759 | I5: =(IF((($C5*I$1)/1000)<=1413,1413,(IF((($C5*I$1)/1000)>18000,18000,(($C5*I$1)/1000)))))*0.8 -> 4400 | J5: -423.2777241
C6: =C5+1000000 -> 3000000 | D6: =IF(C6<=500000,(((VLOOKUP(C6,'CALCULO Empleados'!$B$10:$N$18,MATCH("fija",'CALCULO Empleados'!$B$10:$N$10,0),TRUE)+VLOOKUP(C6,'CALCULO Empleados'!$B$10:$N$18,MATCH("marginal",'CALCULO Empleados'!$B$10:$N$10,0),TRUE)*(C6-VLOOKUP(C6,'CALCULO Empleados'!$B$10:$N$18,MATCH("Inferior",'CALCULO Empleados'!$B$10:$N$10,0),TRUE))))*1.16),(((VLOOKUP(C6,'CALCULO Empleados'!$B$10:$N$18,MATCH("fija",'CALCULO Empleados'!$B$10:$N$10,0),TRUE)+VLOOKUP(C6,'CALCULO Empleados'!$B$10:$N$18,MATCH("marginal",'CALCULO Empleados'!$B$10:$N$10,0),TRUE)*(C6-VLOOKUP(C6,'CALCULO Empleados'!$B$10:$N$18,MATCH("Inferior",'CALCULO Empleados'!$B$10:$N$10,0),TRUE)))*0.9)*1.16)) -> 6796.438027 | E6: 8250 | F6: 1453.561973 | G6: 7425 | H6: 628.5619732 | I6: 6600 | J6: -196.4380268
C7: 4000000 | D7: =IF(C7<=500000,(((VLOOKUP(C7,'CALCULO Empleados'!$B$10:$N$18,MATCH("fija",'CALCULO Empleados'!$B$10:$N$10,0),TRUE)+VLOOKUP(C7,'CALCULO Empleados'!$B$10:$N$18,MATCH("marginal",'CALCULO Empleados'!$B$10:$N$10,0),TRUE)*(C7-VLOOKUP(C7,'CALCULO Empleados'!$B$10:$N$18,MATCH("Inferior",'CALCULO Empleados'!$B$10:$N$10,0),TRUE))))*1.16),(((VLOOKUP(C7,'CALCULO Empleados'!$B$10:$N$18,MATCH("fija",'CALCULO Empleados'!$B$10:$N$10,0),TRUE)+VLOOKUP(C7,'CALCULO Empleados'!$B$10:$N$18,MATCH("marginal",'CALCULO Empleados'!$B$10:$N$10,0),TRUE)*(C7-VLOOKUP(C7,'CALCULO Empleados'!$B$10:$N$18,MATCH("Inferior",'CALCULO Empleados'!$B$10:$N$10,0),TRUE)))*0.9)*1.16)) -> 8769.598027 | E7: 11000 | F7: 2230.401973 | G7: 9900 | H7: 1130.401973 | I7: 8800 | J7: 30.40197316
C8: 5000000 | D8: =IF(C8<=500000,(((VLOOKUP(C8,'CALCULO Empleados'!$B$10:$N$18,MATCH("fija",'CALCULO Empleados'!$B$10:$N$10,0),TRUE)+VLOOKUP(C8,'CALCULO Empleados'!$B$10:$N$18,MATCH("marginal",'CALCULO Empleados'!$B$10:$N$10,0),TRUE)*(C8-VLOOKUP(C8,'CALCULO Empleados'!$B$10:$N$18,MATCH("Inferior",'CALCULO Empleados'!$B$10:$N$10,0),TRUE))))*1.16),(((VLOOKUP(C8,'CALCULO Empleados'!$B$10:$N$18,MATCH("fija",'CALCULO Empleados'!$B$10:$N$10,0),TRUE)+VLOOKUP(C8,'CALCULO Empleados'!$B$10:$N$18,MATCH("marginal",'CALCULO Empleados'!$B$10:$N$10,0),TRUE)*(C8-VLOOKUP(C8,'CALCULO Empleados'!$B$10:$N$18,MATCH("Inferior",'CALCULO Empleados'!$B$10:$N$10,0),TRUE)))*0.9)*1.16)) -> 10419.11835 | E8: 13750 | F8: 3330.88165 | G8: 12375 | H8: 1955.88165 | I8: 11000 | J8: 580.8816495
C9: 6000000 | D9: =IF(C9<=500000,(((VLOOKUP(C9,'CALCULO Empleados'!$B$10:$N$18,MATCH("fija",'CALCULO Empleados'!$B$10:$N$10,0),TRUE)+VLOOKUP(C9,'CALCULO Empleados'!$B$10:$N$18,MATCH("marginal",'CALCULO Empleados'!$B$10:$N$10,0),TRUE)*(C9-VLOOKUP(C9,'CALCULO Empleados'!$B$10:$N$18,MATCH("Inferior",'CALCULO Empleados'!$B$10:$N$10,0),TRUE))))*1.16),(((VLOOKUP(C9,'CALCULO Empleados'!$B$10:$N$18,MATCH("fija",'CALCULO Empleados'!$B$10:$N$10,0),TRUE)+VLOOKUP(C9,'CALCULO Empleados'!$B$10:$N$18,MATCH("marginal",'CALCULO Empleados'!$B$10:$N$10,0),TRUE)*(C9-VLOOKUP(C9,'CALCULO Empleados'!$B$10:$N$18,MATCH("Inferior",'CALCULO Empleados'!$B$10:$N$10,0),TRUE)))*0.9)*1.16)) -> 12068.63835 | E9: 16500 | F9: 4431.36165 | G9: 14850 | H9: 2781.36165 | I9: 13200 | J9: 1131.36165
C10: 7000000 | D10: =IF(C10<=500000,(((VLOOKUP(C10,'CALCULO Empleados'!$B$10:$N$18,MATCH("fija",'CALCULO Empleados'!$B$10:$N$10,0),TRUE)+VLOOKUP(C10,'CALCULO Empleados'!$B$10:$N$18,MATCH("marginal",'CALCULO Empleados'!$B$10:$N$10,0),TRUE)*(C10-VLOOKUP(C10,'CALCULO Empleados'!$B$10:$N$18,MATCH("Inferior",'CALCULO Empleados'!$B$10:$N$10,0),TRUE))))*1.16),(((VLOOKUP(C10,'CALCULO Empleados'!$B$10:$N$18,MATCH("fija",'CALCULO Empleados'!$B$10:$N$10,0),TRUE)+VLOOKUP(C10,'CALCULO Empleados'!$B$10:$N$18,MATCH("marginal",'CALCULO Empleados'!$B$10:$N$10,0),TRUE)*(C10-VLOOKUP(C10,'CALCULO Empleados'!$B$10:$N$18,MATCH("Inferior",'CALCULO Empleados'!$B$10:$N$10,0),TRUE)))*0.9)*1.16)) -> 13718.15835 | E10: 18000 | F10: 4281.84165 | G10: 16200 | H10: 2481.84165 | I10: 14400 | J10: 681.8416495
C11: 8000000 | D11: =IF(C11<=500000,(((VLOOKUP(C11,'CALCULO Empleados'!$B$10:$N$18,MATCH("fija",'CALCULO Empleados'!$B$10:$N$10,0),TRUE)+VLOOKUP(C11,'CALCULO Empleados'!$B$10:$N$18,MATCH("marginal",'CALCULO Empleados'!$B$10:$N$10,0),TRUE)*(C11-VLOOKUP(C11,'CALCULO Empleados'!$B$10:$N$18,MATCH("Inferior",'CALCULO Empleados'!$B$10:$N$10,0),TRUE))))*1.16),(((VLOOKUP(C11,'CALCULO Empleados'!$B$10:$N$18,MATCH("fija",'CALCULO Empleados'!$B$10:$N$10,0),TRUE)+VLOOKUP(C11,'CALCULO Empleados'!$B$10:$N$18,MATCH("marginal",'CALCULO Empleados'!$B$10:$N$10,0),TRUE)*(C11-VLOOKUP(C11,'CALCULO Empleados'!$B$10:$N$18,MATCH("Inferior",'CALCULO Empleados'!$B$10:$N$10,0),TRUE)))*0.9)*1.16)) -> 15367.67835 | E11: 18000 | F11: 2632.32165 | G11: 16200 | H11: 832.3216495 | I11: 14400 | J11: -967.6783505
C12: 9000000 | D12: =IF(C12<=500000,(((VLOOKUP(C12,'CALCULO Empleados'!$B$10:$N$18,MATCH("fija",'CALCULO Empleados'!$B$10:$N$10,0),TRUE)+VLOOKUP(C12,'CALCULO Empleados'!$B$10:$N$18,MATCH("marginal",'CALCULO Empleados'!$B$10:$N$10,0),TRUE)*(C12-VLOOKUP(C12,'CALCULO Empleados'!$B$10:$N$18,MATCH("Inferior",'CALCULO Empleados'!$B$10:$N$10,0),TRUE))))*1.16),(((VLOOKUP(C12,'CALCULO Empleados'!$B$10:$N$18,MATCH("fija",'CALCULO Empleados'!$B$10:$N$10,0),TRUE)+VLOOKUP(C12,'CALCULO Empleados'!$B$10:$N$18,MATCH("marginal",'CALCULO Empleados'!$B$10:$N$10,0),TRUE)*(C12-VLOOKUP(C12,'CALCULO Empleados'!$B$10:$N$18,MATCH("Inferior",'CALCULO Empleados'!$B$10:$N$10,0),TRUE)))*0.9)*1.16)) -> 16703.99866 | E12: 18000 | F12: 1296.001336 | G12: 16200 | H12: -503.9986637 | I12: 14400 | J12: -2303.998664
C13: 10000000 | D13: =IF(C13<=500000,(((VLOOKUP(C13,'CALCULO Empleados'!$B$10:$N$18,MATCH("fija",'CALCULO Empleados'!$B$10:$N$10,0),TRUE)+VLOOKUP(C13,'CALCULO Empleados'!$B$10:$N$18,MATCH("marginal",'CALCULO Empleados'!$B$10:$N$10,0),TRUE)*(C13-VLOOKUP(C13,'CALCULO Empleados'!$B$10:$N$18,MATCH("Inferior",'CALCULO Empleados'!$B$10:$N$10,0),TRUE))))*1.16),(((VLOOKUP(C13,'CALCULO Empleados'!$B$10:$N$18,MATCH("fija",'CALCULO Empleados'!$B$10:$N$10,0),TRUE)+VLOOKUP(C13,'CALCULO Empleados'!$B$10:$N$18,MATCH("marginal",'CALCULO Empleados'!$B$10:$N$10,0),TRUE)*(C13-VLOOKUP(C13,'CALCULO Empleados'!$B$10:$N$18,MATCH("Inferior",'CALCULO Empleados'!$B$10:$N$10,0),TRUE)))*0.9)*1.16)) -> 18040.31866 | E13: 18000 | F13: -40.31866368 | G13: 16200 | H13: -1840.318664 | I13: 14400 | J13: -3640.318664
C14: =C13+5000000 -> 15000000 | D14: =IF(C14<=500000,(((VLOOKUP(C14,'CALCULO Empleados'!$B$10:$N$18,MATCH("fija",'CALCULO Empleados'!$B$10:$N$10,0),TRUE)+VLOOKUP(C14,'CALCULO Empleados'!$B$10:$N$18,MATCH("marginal",'CALCULO Empleados'!$B$10:$N$10,0),TRUE)*(C14-VLOOKUP(C14,'CALCULO Empleados'!$B$10:$N$18,MATCH("Inferior",'CALCULO Empleados'!$B$10:$N$10,0),TRUE))))*1.16),(((VLOOKUP(C14,'CALCULO Empleados'!$B$10:$N$18,MATCH("fija",'CALCULO Empleados'!$B$10:$N$10,0),TRUE)+VLOOKUP(C14,'CALCULO Empleados'!$B$10:$N$18,MATCH("marginal",'CALCULO Empleados'!$B$10:$N$10,0),TRUE)*(C14-VLOOKUP(C14,'CALCULO Empleados'!$B$10:$N$18,MATCH("Inferior",'CALCULO Empleados'!$B$10:$N$10,0),TRUE)))*0.9)*1.16)) -> 24721.91866 | E14: 18000 | F14: -6721.918664 | G14: 16200 | H14: -8521.918664 | I14: 14400 | J14: -10321.91866
C15: =C14+5000000 -> 20000000 | D15: =IF(C15<=500000,(((VLOOKUP(C15,'CALCULO Empleados'!$B$10:$N$18,MATCH("fija",'CALCULO Empleados'!$B$10:$N$10,0),TRUE)+VLOOKUP(C15,'CALCULO Empleados'!$B$10:$N$18,MATCH("marginal",'CALCULO Empleados'!$B$10:$N$10,0),TRUE)*(C15-VLOOKUP(C15,'CALCULO Empleados'!$B$10:$N$18,MATCH("Inferior",'CALCULO Empleados'!$B$10:$N$10,0),TRUE))))*1.16),(((VLOOKUP(C15,'CALCULO Empleados'!$B$10:$N$18,MATCH("fija",'CALCULO Empleados'!$B$10:$N$10,0),TRUE)+VLOOKUP(C15,'CALCULO Empleados'!$B$10:$N$18,MATCH("marginal",'CALCULO Empleados'!$B$10:$N$10,0),TRUE)*(C15-VLOOKUP(C15,'CALCULO Empleados'!$B$10:$N$18,MATCH("Inferior",'CALCULO Empleados'!$B$10:$N$10,0),TRUE)))*0.9)*1.16)) -> 30317.75894 | E15: 18000 | F15: -12317.75894 | G15: 16200 | H15: -14117.75894 | I15: 14400 | J15: -15917.75894
C16: 25000000 | D16: =IF(C16<=500000,(((VLOOKUP(C16,'CALCULO Empleados'!$B$10:$N$18,MATCH("fija",'CALCULO Empleados'!$B$10:$N$10,0),TRUE)+VLOOKUP(C16,'CALCULO Empleados'!$B$10:$N$18,MATCH("marginal",'CALCULO Empleados'!$B$10:$N$10,0),TRUE)*(C16-VLOOKUP(C16,'CALCULO Empleados'!$B$10:$N$18,MATCH("Inferior",'CALCULO Empleados'!$B$10:$N$10,0),TRUE))))*1.16),(((VLOOKUP(C16,'CALCULO Empleados'!$B$10:$N$18,MATCH("fija",'CALCULO Empleados'!$B$10:$N$10,0),TRUE)+VLOOKUP(C16,'CALCULO Empleados'!$B$10:$N$18,MATCH("marginal",'CALCULO Empleados'!$B$10:$N$10,0),TRUE)*(C16-VLOOKUP(C16,'CALCULO Empleados'!$B$10:$N$18,MATCH("Inferior",'CALCULO Empleados'!$B$10:$N$10,0),TRUE)))*0.9)*1.16)) -> 35642.15894 | E16: 18000 | F16: -17642.15894 | G16: 16200 | H16: -19442.15894 | I16: 14400 | J16: -21242.15894
C17: 30000000 | D17: =IF(C17<=500000,(((VLOOKUP(C17,'CALCULO Empleados'!$B$10:$N$18,MATCH("fija",'CALCULO Empleados'!$B$10:$N$10,0),TRUE)+VLOOKUP(C17,'CALCULO Empleados'!$B$10:$N$18,MATCH("marginal",'CALCULO Empleados'!$B$10:$N$10,0),TRUE)*(C17-VLOOKUP(C17,'CALCULO Empleados'!$B$10:$N$18,MATCH("Inferior",'CALCULO Empleados'!$B$10:$N$10,0),TRUE))))*1.16),(((VLOOKUP(C17,'CALCULO Empleados'!$B$10:$N$18,MATCH("fija",'CALCULO Empleados'!$B$10:$N$10,0),TRUE)+VLOOKUP(C17,'CALCULO Empleados'!$B$10:$N$18,MATCH("marginal",'CALCULO Empleados'!$B$10:$N$10,0),TRUE)*(C17-VLOOKUP(C17,'CALCULO Empleados'!$B$10:$N$18,MATCH("Inferior",'CALCULO Empleados'!$B$10:$N$10,0),TRUE)))*0.9)*1.16)) -> 40966.55894 | E17: 18000 | F17: -22966.55894 | G17: 16200 | H17: -24766.55894 | I17: 14400 | J17: -26566.55894
C18: 35000000 | D18: =IF(C18<=500000,(((VLOOKUP(C18,'CALCULO Empleados'!$B$10:$N$18,MATCH("fija",'CALCULO Empleados'!$B$10:$N$10,0),TRUE)+VLOOKUP(C18,'CALCULO Empleados'!$B$10:$N$18,MATCH("marginal",'CALCULO Empleados'!$B$10:$N$10,0),TRUE)*(C18-VLOOKUP(C18,'CALCULO Empleados'!$B$10:$N$18,MATCH("Inferior",'CALCULO Empleados'!$B$10:$N$10,0),TRUE))))*1.16),(((VLOOKUP(C18,'CALCULO Empleados'!$B$10:$N$18,MATCH("fija",'CALCULO Empleados'!$B$10:$N$10,0),TRUE)+VLOOKUP(C18,'CALCULO Empleados'!$B$10:$N$18,MATCH("marginal",'CALCULO Empleados'!$B$10:$N$10,0),TRUE)*(C18-VLOOKUP(C18,'CALCULO Empleados'!$B$10:$N$18,MATCH("Inferior",'CALCULO Empleados'!$B$10:$N$10,0),TRUE)))*0.9)*1.16)) -> 46290.95894 | E18: 18000 | F18: -28290.95894 | G18: 16200 | H18: -30090.95894 | I18: 14400 | J18: -31890.95894
C19: 40000000 | D19: =IF(C19<=500000,(((VLOOKUP(C19,'CALCULO Empleados'!$B$10:$N$18,MATCH("fija",'CALCULO Empleados'!$B$10:$N$10,0),TRUE)+VLOOKUP(C19,'CALCULO Empleados'!$B$10:$N$18,MATCH("marginal",'CALCULO Empleados'!$B$10:$N$10,0),TRUE)*(C19-VLOOKUP(C19,'CALCULO Empleados'!$B$10:$N$18,MATCH("Inferior",'CALCULO Empleados'!$B$10:$N$10,0),TRUE))))*1.16),(((VLOOKUP(C19,'CALCULO Empleados'!$B$10:$N$18,MATCH("fija",'CALCULO Empleados'!$B$10:$N$10,0),TRUE)+VLOOKUP(C19,'CALCULO Empleados'!$B$10:$N$18,MATCH("marginal",'CALCULO Empleados'!$B$10:$N$10,0),TRUE)*(C19-VLOOKUP(C19,'CALCULO Empleados'!$B$10:$N$18,MATCH("Inferior",'CALCULO Empleados'!$B$10:$N$10,0),TRUE)))*0.9)*1.16)) -> 51615.35894 | E19: 18000 | F19: -33615.35894 | G19: 16200 | H19: -35415.35894 | I19: 14400 | J19: -37215.35894
C20: 45000000 | D20: =IF(C20<=500000,(((VLOOKUP(C20,'CALCULO Empleados'!$B$10:$N$18,MATCH("fija",'CALCULO Empleados'!$B$10:$N$10,0),TRUE)+VLOOKUP(C20,'CALCULO Empleados'!$B$10:$N$18,MATCH("marginal",'CALCULO Empleados'!$B$10:$N$10,0),TRUE)*(C20-VLOOKUP(C20,'CALCULO Empleados'!$B$10:$N$18,MATCH("Inferior",'CALCULO Empleados'!$B$10:$N$10,0),TRUE))))*1.16),(((VLOOKUP(C20,'CALCULO Empleados'!$B$10:$N$18,MATCH("fija",'CALCULO Empleados'!$B$10:$N$10,0),TRUE)+VLOOKUP(C20,'CALCULO Empleados'!$B$10:$N$18,MATCH("marginal",'CALCULO Empleados'!$B$10:$N$10,0),TRUE)*(C20-VLOOKUP(C20,'CALCULO Empleados'!$B$10:$N$18,MATCH("Inferior",'CALCULO Empleados'!$B$10:$N$10,0),TRUE)))*0.9)*1.16)) -> 56939.75894 | E20: 18000 | F20: -38939.75894 | G20: 16200 | H20: -40739.75894 | I20: 14400 | J20: -42539.75894
C21: 50000000 | D21: =IF(C21<=500000,(((VLOOKUP(C21,'CALCULO Empleados'!$B$10:$N$18,MATCH("fija",'CALCULO Empleados'!$B$10:$N$10,0),TRUE)+VLOOKUP(C21,'CALCULO Empleados'!$B$10:$N$18,MATCH("marginal",'CALCULO Empleados'!$B$10:$N$10,0),TRUE)*(C21-VLOOKUP(C21,'CALCULO Empleados'!$B$10:$N$18,MATCH("Inferior",'CALCULO Empleados'!$B$10:$N$10,0),TRUE))))*1.16),(((VLOOKUP(C21,'CALCULO Empleados'!$B$10:$N$18,MATCH("fija",'CALCULO Empleados'!$B$10:$N$10,0),TRUE)+VLOOKUP(C21,'CALCULO Empleados'!$B$10:$N$18,MATCH("marginal",'CALCULO Empleados'!$B$10:$N$10,0),TRUE)*(C21-VLOOKUP(C21,'CALCULO Empleados'!$B$10:$N$18,MATCH("Inferior",'CALCULO Empleados'!$B$10:$N$10,0),TRUE)))*0.9)*1.16)) -> 62264.15894 | E21: 18000 | F21: -44264.15894 | G21: 16200 | H21: -46064.15894 | I21: 14400 | J21: -47864.15894
